{"text_format":"3","workbook":"xlsx","n_sheets":14,"sheets":["Instrukcija","1-2l_Titulinis","3l_VP","4l_S","5l_FP","6l_FŠ","7l_R","8l_TS","8l-1_inovatyvumas","9l_ĮS","10l_PD","11l_D ","12l_SD","Sąrašai"],"not_rendered":{"defined_names":19,"comments":2},"read":"whole","date_system":"1900"}

{"sheet":"Instrukcija","index":0,"n_rows":9,"n_cols":2,"rows_kept":9,"merged":[[0,1,3,1]]}
[null,"PATVIRTINTA\nNacionalinės mokėjimo agentūros\nprie Žemės ūkio ministerijos\ndirektoriaus 2025 m.spalio 7 d.\nįsakymu Nr. BR1-410"]
[]
[]
[]
[]
["Pažymėta laukelio spalva","Paaiškinimas"]
[null,"Pildomas laukas (pildo  projekto pareiškėjas), suvedama prašoma informacija."]
[null,"Laukas nepildomas. Skaičiavimui suvesta formulė arba tekstas."]
[null,"Automatizuotas atsakymas, pasirenkamas vienas iš siūlomų variantų. Siūlomas variantas pasirenkamas su dešinėje laukelio pusėje esančia rodykle. "]

{"sheet":"1-2l_Titulinis","index":1,"n_rows":46,"n_cols":5,"rows_kept":46,"merged":[[0,1,1,9],[3,1,3,9],[4,3,4,7],[6,4,6,6],[7,4,7,6],[8,1,8,9],[9,0,9,9],[10,4,10,6],[11,4,11,6],[13,1,13,9],[14,2,14,8],[17,1,17,3],[17,4,17,9],[18,1,18,3],[18,4,18,9],[19,1,19,3],[19,4,19,9],[20,1,20,3],[20,4,20,9],[21,1,21,3],[21,4,21,9],[22,1,22,3],[22,4,22,9],[23,1,23,3],[23,4,23,9],[24,1,24,3],[24,4,24,9],[25,1,25,3],[25,4,25,9],[26,1,26,3],[26,4,26,9],[27,1,27,3],[27,4,27,9],[28,1,28,3],[28,4,28,9],[29,1,29,3],[29,4,29,9],[32,1,32,3],[32,4,32,9],[33,0,35,0],[33,1,35,3],[33,4,33,8],[34,4,34,9],[35,4,35,9],[36,1,36,3],[36,4,36,9],[37,1,37,3],[37,4,37,9],[38,1,38,3],[38,4,38,9],[39,1,39,3],[39,4,39,9],[40,1,45,3],[40,4,40,9],[41,4,41,9],[42,4,42,9],[43,4,43,9],[44,4,44,9],[45,4,45,9]]}
[null,"(Pavyzdinė Sumaniųjų kaimų projekto vykdytojo paraiškos, teikiamos pagal Sumaniųjų kaimų strategiją, forma)"]
[]
[]
[]
[{"$nulls":3}," (pareiškėjo pavadinimas)"]
[]
[]
[{"$nulls":4},"(sudarymo vieta)"]
[null,"SUMANIŲJŲ KAIMŲ PROJEKTO VYKDYTOJO PROJEKTO PARAIŠKA"]
[]
[]
[{"$nulls":4},"(data)"]
[]
[]
[null,null,"(Vietos veiklos grupė (toliau - VVG), kuriai teikiama  projekto paraiška, pavadinimas)"]
[]
["1.","BENDRA INFORMACIJA APIE PROJEKTŲ VYKDYTOJĄ"]
["1.1","Projekto vykdytojo registracijos kodas"]
["1.3","Savivaldybės pavadinimas"]
["1.4","Seniūnijos pavadinimas"]
["1.5","Gyvenamosios vietovės pavadinimas"]
["1.6","Gatvės pavadinimas"]
["1.7","Namo Nr."]
["1.8","Buto Nr."]
["1.9","Pašto indeksas"]
["1.10","Telefono Nr.    "]
["1.11","El. paštas         "]
["1.12","Projekto vykdytojo banko pavadinimas"]
["1.13","Projekto vykdytojo atsiskaitomosios sąskaitos numeris"]
["1.14","Projekto vykdytojo vadovas"]
[]
["2.","BENDRA INFORMACIJA APIE  PROJEKTĄ"]
["2.1","Sumaniojo kaimo projekto pavadinimas"]
["2.2","Informacija apie  projekto partnerius",null,null,"Ar projektas teikiamas su parneriais?\nAtsakymą pasirinkti iš sąrašo"]
[{"$nulls":4},"Jei atsakymas \"Taip\", pildomas laukas"]
[]
["2.3","Sumaniojo kaimo projekto įgyvendinimo vieta"]
["2.4","Planuojamas sumaniojo kaimo projekto įgyvendinimo laikotarpis mėn."]
["2.5","Asmuo, atsakingas už sumanaus kaimo projekto administravimą "]
["2.6","Sumaniojo kaimo projekto konsultantas"]
[null,"Sumaniojo kaimo projekto investuotojas ",null,null,"\n☐ ekonominiai ištekliai"]
[{"$nulls":4},"\n☐ piniginėmis lėšomis"]
[{"$nulls":4},"\n☐ pastatais"]
[{"$nulls":4},"\n☐ įrenginiais"]
[{"$nulls":4},"\n☐ transporto priemonėmis"]
["2.7",{"$nulls":3},"\nkita______________"]

{"sheet":"3l_VP","index":2,"n_rows":20,"n_cols":2,"rows_kept":20}
[]
["3.","SUMANIOJO KAIMO PROJEKTO IDĖJOS APRAŠYMAS"]
[]
["3.1.","Sumaniojo kaimo projekto tema (pasirenkama iš Lietuvos žemės ūkio ir kaimo plėtros 2023–2027 metų strateginio plano intervencinės priemonės „Sumanieji kaimai“ įgyvendinimo taisyklių, patvirtintų Lietuvos Respublikos žemės ūkio ministro 2023 m. gruodžio 12 d. įsakymu Nr. 3D-841 „Dėl Lietuvos žemės ūkio ir kaimo plėtros 2023–2027 metų strateginio plano intervencinės priemonės „Sumanieji kaimai“ įgyvendinimo taisyklių patvirtinimo“ (toliau – Taisyklės), 6 punkto ir pagrindžiama jos atitiktis strategijoje numatytai temai):"]
[]
["3.2.","Sumaniojo kaimo projekte numatomas veiklos pobūdis:"]
[]
["3.3.","Sumaniojo kaimo projekto tikslas (pagrindžiama, kaip projekto tikslas atitinka strategijos, pagal kurią yra teikiamas, tikslus):"]
[]
["3.4.","Sumaniojo kaimo strategijos problema, kurią sprendžia šis sumaniojo kaimo projektas:"]
[]
["3.5.","Sumanaus kaimo projekto uždaviniai rezultatams pasiekti (pagrindžiama kaip projekto uždaviniai yra susiję su strategijos tikslu ir strategijos uždaviniais):"]
[]
["3.6.","Sumaniojo kaimo projekto sumanumo ir(arba) inovatyvumo elementai (pagrįsti, kaip projekto sumanumo ir inovatyvumo elementai susiję su Strategijos sumanumo elementais):"]
[]
["3.7.","Tikslinės grupės apibūdinimas, pagrindžiant šios tikslinės grupės pasirinkimo priežastį (netaikoma privataus verslo projektams). Pateikti informaciją, kaip bus vykdoma dalyvių atranka. Nurodyti, kaip bus vykdoma tikslinės grupės ir pokyčio stebėsena sumanaus kaimo projekto įgyvendinimo ir kontrolės laikotarpiais. "]
[]
["3.8.","Trumpas  projekto aprašymas (aprašomos projekte suplanuotos veiklos ir veiksmų planas)"]
[]
["3.9.","Funkcijų pasidalijimas įgyvendinant sumanaus kaimo projektą (jeigu sumanaus kaimo projekte dalyvautų partneris):"]

{"sheet":"4l_S","index":3,"n_rows":27,"n_cols":9,"rows_kept":27,"merged":[[1,1,1,9],[2,1,2,9],[3,1,3,4],[3,5,3,9],[4,1,4,4],[4,5,4,9],[10,1,10,7],[10,8,10,9],[11,1,11,7],[12,1,12,7],[13,1,13,7],[13,8,13,9],[14,2,14,7],[14,8,14,9],[15,2,15,7],[15,8,15,9],[16,2,16,7],[16,8,16,9],[17,2,17,7],[17,8,17,9],[18,2,18,7],[18,8,18,9],[19,1,19,7],[19,8,19,9],[22,8,22,9],[23,1,23,7],[24,1,24,7],[25,1,25,7],[26,1,26,7],[26,8,26,9],[27,2,27,7],[27,8,27,9],[28,2,28,7],[28,8,28,9],[29,2,29,7],[29,8,29,9],[30,2,30,7],[30,8,30,9],[31,2,31,7],[31,8,31,9]]}
[]
["4.","INFORMACIJA APIE PROJEKTO VYKDYTOJO SUTUOKTINĮ IR KITUS SU PAREIŠKĖJU SUSIJUSIUS SUBJEKTUS IR RYŠĮ SU JAIS, PRIKLAUSYMĄ GRUPĖMS (lapas pildomas, kai teikiamas investicinis projektas)"]
["4.1.","Informacija apie projekto vykdytojo sutuoktinį, kaip apibrėžta Lietuvos Respublikos civilinio kodekso 3.135 straipsnyje \n(pildoma, kai projekto vykdytojas yra fizinis asmuo)"]
["4.1.1","Projekto vykdytojo sutuoktinio vardas, pavardė"]
["4.1.2","Projekto vykdytojo sutuoktinio asmens kodas"]
[]
[]
[]
[]
[]
["4.2.","Ar priklausote įmonių grupei, kaip nurodyta Lietuvos Respublikos įmonių grupių konsoliduotosios atskaitomybė įstatyme?   (Įmonių grupės, patronuojamosios ir patronuojančiosios įmonės yra apibrėžtos Lietuvos Respublikos įmonių grupių konsoliduotosios atskaitomybės įstatyme.)"]
[null,"Jei į klausimą atsakėte NE, papildomos informacijos pateikti nereikia.",{"$nulls":6},"Ne"]
[null,"Jei į klausimą atsakėte TAIP, pateikite informaciją apie patronuojančiąją įmonę.",{"$nulls":6},"Taip"]
[null,"Patronuojančiosios įmonės pavadinimas",{"$nulls":6},"Patronuojančiosios įmonės kodas "]
[]
[]
[]
[]
[]
[null,"Patronuojamos įmonės pavadinimas",{"$nulls":6},"Patronuojamos įmonės kodas "]
[]
[]
[]
[null,"Ar priklausote įmonių grupei, kaip nurodyta Lietuvos Respublikos įmonių grupių konsoliduotosios atskaitomybė įstatyme? (Įmonių grupės, patronuojamosios ir patronuojančiosios įmonės yra apibrėžtos Lietuvos Respublikos įmonių grupių konsoliduotosios atskaitomybės įstatyme.)"]
[null,"Jei į klausimą atsakėte NE, papildomos informacijos pateikti nereikia.",{"$nulls":6},"Ne"]
[null,"Jei į klausimą atsakėte TAIP, pateikite informaciją apie patronuojančiąją įmonę.",{"$nulls":6},"Taip"]
[null,"Patronuojančiosios įmonės pavadinimas",{"$nulls":6},"Patronuojančiosios įmonės kodas "]

{"sheet":"5l_FP","index":4,"n_rows":57,"n_cols":14,"rows_kept":57,"merged":[[9,0,10,0],[9,1,10,1],[9,2,10,2],[9,3,10,3],[9,4,10,4],[9,5,10,5],[9,6,10,6],[9,7,10,7],[9,8,10,8],[9,9,10,9],[9,10,10,10],[9,11,9,12],[9,13,10,13]]}
[]
["5.","SUMANAUS KAIMO PROJEKTO FINANSINIS PLANAS "]
[]
["PVM išlaidų tinkamumas:",{"$nulls":5},"Indėlis (prisidėjimas), proc.",{"$f":"100-H5","v":{"v":100,"d":"100.00"}}]
[null,"PVM netinkamos išlaidos (verslas, PVM mokėtojas)",{"$nulls":4},"Paramos intensyvumas, proc"]
["Projekto tipas (ne pelno siekiantiems projektamas)"]
[]
[]
[]
["Eil. Nr.","Išlaidų pavadinimas ","Suma be PVM, Eur","PVM, proc.","PVM,  Eur","Suma su PVM, Eur","Tinkamos finansuoti išlaidos, Eur","Prašoma finansuoti suma, Eur","Pasirinktas išlaidų parametras","Rinkos kainos pagrindimo būdas","Planuojamų išlaidų poreikio ir kainos pagrindimas ","Konkretaus ūkio subjekto gaunama nauda, proc. (nurodoma investicijų dalis kiekvieno atskirai) (pildoma, kai yra taikoma de minimis ir projektas įgyvendinamas su partneriu)",null,"Pirkimų vykdymo būdai ir etapai\n(nurodykite, kurį būdą taikysite prie kiekvienos išlaidos:\n-\tkonkursas / apklausa;\n-\tkomerciniai pasiūlymai;\n-\tkita)"]
[{"$nulls":11},"projekto vykdytojo ir (ar) jo partnerio pavadinimas ar vardas ir pavardė","Gaunamos naudos proc."]
["5.1","Prekės (pildoma, kai teikiamas investicinis projektas ir įsigyjamas ilgalaikis turtas ir (arba) statybinės medžiagos)",{"$f":"SUM(C13:C22)","v":{"v":0,"d":"0.00"}},null,{"$f":"SUM(E13:E22)","v":{"v":0,"d":"0.00"}},{"$f":"SUM(F13:F22)","v":{"v":0,"d":"0.00"}},{"$f":"SUM(G13:G22)","v":{"v":0,"d":"0.00"}},{"$f":"SUM(H13:H22)","v":{"v":0,"d":"0.00"}}]
["5.1.1",null,{"$f":"ROUND(F13/(1+D13/100), 2)","v":{"v":0,"d":"0.00"}},21,{"$f":"F13-C13","v":{"v":0,"d":"0.00"}},null,{"$f":"IF(Sąrašai!pvm_tipas=2,$C13,$F13)","v":{"v":0,"d":"0.00"}},{"$f":"ROUND(G13*H$5/100,2)","v":{"v":0,"d":"0.00"}}]
["5.1.2",null,{"v":0,"d":"0.00"},null,{"$f":"F14-C14","v":{"v":0,"d":"0.00"}},null,{"$f":"IF(Sąrašai!pvm_tipas=2,$C14,$F14)","v":{"v":0,"d":"0.00"}},{"$f":"ROUND(G14*H$5/100,2)","v":{"v":0,"d":"0.00"}}]
["5.1.3",null,{"v":0,"d":"0.00"},null,{"v":0,"d":"0.00"},null,{"$f":"IF(Sąrašai!pvm_tipas=2,$C15,$F15)","v":{"v":0,"d":"0.00"}},{"v":0,"d":"0.00"}]
["5.1.4",null,{"v":0,"d":"0.00"},null,{"v":0,"d":"0.00"},null,{"$f":"IF(Sąrašai!pvm_tipas=2,$C16,$F16)","v":{"v":0,"d":"0.00"}},{"v":0,"d":"0.00"}]
["5.1.5",null,{"v":0,"d":"0.00"},null,{"v":0,"d":"0.00"},null,{"$f":"IF(Sąrašai!pvm_tipas=2,$C17,$F17)","v":{"v":0,"d":"0.00"}},{"v":0,"d":"0.00"}]
["5.1.6",null,{"v":0,"d":"0.00"},null,{"v":0,"d":"0.00"},null,{"$f":"IF(Sąrašai!pvm_tipas=2,$C18,$F18)","v":{"v":0,"d":"0.00"}},{"v":0,"d":"0.00"}]
["5.1.7",null,{"v":0,"d":"0.00"},null,{"v":0,"d":"0.00"},null,{"$f":"IF(Sąrašai!pvm_tipas=2,$C19,$F19)","v":{"v":0,"d":"0.00"}},{"v":0,"d":"0.00"}]
["5.1.8",null,{"v":0,"d":"0.00"},null,{"v":0,"d":"0.00"},null,{"$f":"IF(Sąrašai!pvm_tipas=2,$C20,$F20)","v":{"v":0,"d":"0.00"}},{"v":0,"d":"0.00"}]
["5.1.9",null,{"v":0,"d":"0.00"},null,{"v":0,"d":"0.00"},null,{"$f":"IF(Sąrašai!pvm_tipas=2,$C21,$F21)","v":{"v":0,"d":"0.00"}},{"v":0,"d":"0.00"}]
["5.1.10",null,{"v":0,"d":"0.00"},null,{"v":0,"d":"0.00"},null,{"$f":"IF(Sąrašai!pvm_tipas=2,$C22,$F22)","v":{"v":0,"d":"0.00"}},{"v":0,"d":"0.00"}]
["5.2","Darbai ir paslaugos (pildoma, kai teikiamas investicinis projektas)",{"$f":"SUM(C24:C33)","v":{"v":0,"d":"0.00"}},null,{"$f":"SUM(E24:E33)","v":{"v":0,"d":"0.00"}},{"$f":"SUM(F24:F33)","v":{"v":0,"d":"0.00"}},{"$f":"SUM(G24:G33)","v":{"v":0,"d":"0.00"}},{"v":0,"d":"0.00"}]
["5.2.1",null,{"$f":"ROUND(F24/(1+D24/100), 2)","v":{"v":0,"d":"0.00"}},null,{"$f":"F24-C24","v":{"v":0,"d":"0.00"}},null,{"$f":"IF(Sąrašai!pvm_tipas=2,$C24,$F24)","v":{"v":0,"d":"0.00"}},{"$f":"ROUND(G24*H$5/100,2)","v":{"v":0,"d":"0.00"}}]
["5.2.2",null,{"v":0,"d":"0.00"},null,{"v":0,"d":"0.00"},null,{"$f":"IF(Sąrašai!pvm_tipas=2,$C25,$F25)","v":{"v":0,"d":"0.00"}},{"$f":"ROUND(G25*H$5/100,2)","v":{"v":0,"d":"0.00"}}]
["5.2.3",null,{"v":0,"d":"0.00"},null,{"v":0,"d":"0.00"},null,{"$f":"IF(Sąrašai!pvm_tipas=2,$C26,$F26)","v":{"v":0,"d":"0.00"}},{"v":0,"d":"0.00"}]
["5.2.4",null,{"v":0,"d":"0.00"},null,{"v":0,"d":"0.00"},null,{"$f":"IF(Sąrašai!pvm_tipas=2,$C27,$F27)","v":{"v":0,"d":"0.00"}},{"v":0,"d":"0.00"}]
["5.2.5",null,{"v":0,"d":"0.00"},null,{"v":0,"d":"0.00"},null,{"$f":"IF(Sąrašai!pvm_tipas=2,$C28,$F28)","v":{"v":0,"d":"0.00"}},{"v":0,"d":"0.00"}]
["5.2.6",null,{"v":0,"d":"0.00"},null,{"v":0,"d":"0.00"},null,{"$f":"IF(Sąrašai!pvm_tipas=2,$C29,$F29)","v":{"v":0,"d":"0.00"}},{"v":0,"d":"0.00"}]
["5.2.7",null,{"v":0,"d":"0.00"},null,{"v":0,"d":"0.00"},null,{"$f":"IF(Sąrašai!pvm_tipas=2,$C30,$F30)","v":{"v":0,"d":"0.00"}},{"v":0,"d":"0.00"}]
["5.2.8",null,{"v":0,"d":"0.00"},null,{"v":0,"d":"0.00"},null,{"$f":"IF(Sąrašai!pvm_tipas=2,$C31,$F31)","v":{"v":0,"d":"0.00"}},{"v":0,"d":"0.00"}]
["5.2.9",null,{"v":0,"d":"0.00"},null,{"v":0,"d":"0.00"},null,{"$f":"IF(Sąrašai!pvm_tipas=2,$C32,$F32)","v":{"v":0,"d":"0.00"}},{"v":0,"d":"0.00"}]
["5.2.10",null,{"v":0,"d":"0.00"},null,{"v":0,"d":"0.00"},null,{"$f":"IF(Sąrašai!pvm_tipas=2,$C33,$F33)","v":{"v":0,"d":"0.00"}},{"v":0,"d":"0.00"}]
["5.3","Prekės, priemonės ir paslaugos sunaudojamos projekto metu (pildoma, kai teikiamas veiklos projektas)",{"$f":"SUM(C35:C44)","v":{"v":0,"d":"0.00"}},null,{"$f":"SUM(E35:E44)","v":{"v":0,"d":"0.00"}},{"$f":"SUM(F35:F44)","v":{"v":0,"d":"0.00"}},{"v":0,"d":"0.00"},{"v":0,"d":"0.00"}]
["5.3.1",null,{"v":0,"d":"0.00"},null,{"v":0,"d":"0.00"},null,{"$f":"IF(Sąrašai!pvm_tipas=2,$C35,$F35)","v":{"v":0,"d":"0.00"}},{"$f":"ROUND(G35*H$5/100,2)","v":{"v":0,"d":"0.00"}}]
["5.3.2",null,{"v":0,"d":"0.00"},null,{"v":0,"d":"0.00"},null,{"$f":"IF(Sąrašai!pvm_tipas=2,$C36,$F36)","v":{"v":0,"d":"0.00"}},{"$f":"ROUND(G36*H$5/100,2)","v":{"v":0,"d":"0.00"}}]
["5.3.3",null,{"v":0,"d":"0.00"},null,{"v":0,"d":"0.00"},null,{"$f":"IF(Sąrašai!pvm_tipas=2,$C37,$F37)","v":{"v":0,"d":"0.00"}},{"v":0,"d":"0.00"}]
["5.3.4",null,{"v":0,"d":"0.00"},null,{"v":0,"d":"0.00"},null,{"$f":"IF(Sąrašai!pvm_tipas=2,$C38,$F38)","v":{"v":0,"d":"0.00"}},{"v":0,"d":"0.00"}]
["5.3.5",null,{"v":0,"d":"0.00"},null,{"v":0,"d":"0.00"},null,{"$f":"IF(Sąrašai!pvm_tipas=2,$C39,$F39)","v":{"v":0,"d":"0.00"}},{"v":0,"d":"0.00"}]
["5.3.6",null,{"v":0,"d":"0.00"},null,{"v":0,"d":"0.00"},null,{"$f":"IF(Sąrašai!pvm_tipas=2,$C40,$F40)","v":{"v":0,"d":"0.00"}},{"v":0,"d":"0.00"}]
["5.3.7",null,{"v":0,"d":"0.00"},null,{"v":0,"d":"0.00"},null,{"$f":"IF(Sąrašai!pvm_tipas=2,$C41,$F41)","v":{"v":0,"d":"0.00"}},{"v":0,"d":"0.00"}]
["5.3.8",null,{"v":0,"d":"0.00"},null,{"v":0,"d":"0.00"},null,{"$f":"IF(Sąrašai!pvm_tipas=2,$C42,$F42)","v":{"v":0,"d":"0.00"}},{"v":0,"d":"0.00"}]
["5.3.9",null,{"v":0,"d":"0.00"},null,{"v":0,"d":"0.00"},null,{"$f":"IF(Sąrašai!pvm_tipas=2,$C43,$F43)","v":{"v":0,"d":"0.00"}},{"$f":"ROUND(G43*H$5/100,2)","v":{"v":0,"d":"0.00"}}]
["5.3.10",null,{"v":0,"d":"0.00"},null,{"v":0,"d":"0.00"},null,{"$f":"IF(Sąrašai!pvm_tipas=2,$C44,$F44)","v":{"v":0,"d":"0.00"}},{"v":0,"d":"0.00"}]
["5.4","Bendrosios išlaidos",{"$f":"SUM(C46:C49)","v":{"v":0,"d":"0.00"}},null,{"$f":"SUM(E46:E49)","v":{"v":0,"d":"0.00"}},{"v":0,"d":"0.00"},{"v":0,"d":"0.00"},{"$f":"SUM(H46:H49)","v":{"v":0,"d":"0.00"}}]
["5.4.1","Projekto viešinimas",{"v":0,"d":"0.00"},null,{"$f":"F46-C46","v":{"v":0,"d":"0.00"}},null,{"$f":"IF(Sąrašai!pvm_tipas=2,$C46,$F46)","v":{"v":0,"d":"0.00"}},{"$f":"ROUND(G46*H$5/100,2)","v":{"v":0,"d":"0.00"}}]
["5.4.2","Verslo plano parengimas",{"$f":"ROUND(F47/(1+D47/100), 2)","v":{"v":0,"d":"0.00"}},null,{"$f":"F47-C47","v":{"v":0,"d":"0.00"}},null,{"$f":"IF(Sąrašai!pvm_tipas=2,$C47,$F47)","v":{"v":0,"d":"0.00"}},{"$f":"ROUND(G47*H$5/100,2)","v":{"v":0,"d":"0.00"}}]
["5.4.3","Techninis projektas",{"$f":"ROUND(F48/(1+D48/100), 2)","v":{"v":0,"d":"0.00"}},null,{"$f":"F48-C48","v":{"v":0,"d":"0.00"}},null,{"$f":"IF(Sąrašai!pvm_tipas=2,$C48,$F48)","v":{"v":0,"d":"0.00"}},{"v":0,"d":"0.00"}]
["5.4.4",null,{"$f":"ROUND(F49/(1+D49/100), 2)","v":{"v":0,"d":"0.00"}},null,{"$f":"F49-C49","v":{"v":0,"d":"0.00"}},null,{"$f":"IF(Sąrašai!pvm_tipas=2,$C49,$F49)","v":{"v":0,"d":"0.00"}},{"v":0,"d":"0.00"}]
["5.5","IŠ VISO TINKAMŲ IŠLAIDŲ, Eur",{"$f":"SUM(C12,C23,C34,C45)","v":{"v":0,"d":"0.00"}},null,{"$f":"SUM(E12,E23,E34,E45)","v":{"v":0,"d":"0.00"}},{"$f":"SUM(F12,F23,F34,F45)","v":{"v":0,"d":"0.00"}},{"$f":"SUM(G12,G23,G34,G45)","v":{"v":0,"d":"0.00"}},{"$f":"SUM(H12,H23,H34,H45)","v":{"v":0,"d":"0.00"}}]
[]
[null,"Perspėjimai:"]
[null,{"$f":"IF(F50=0, \"-\", IF(OR(F45/(F50-F45)>0.1, AND(C45>1800, C23=0)), \"Bendrųjų išlaidų suma turi būti ne daugiau kaip 10 proc. arba 1800 Eur be PVM\", IF(OR(F45/(F50-F45)>0.1, C45>3000), \"Bendrųjų išlaidų suma turi būti ne daugiau kaip 10 proc. arba 3000 Eur be PVM\", \"-\")))","v":"-"}]
[null,{"$f":"IF(AND(F34>0,F46>0),\"Bendrosios išlaidos, išskyrus viešinimo išlaidas, nėra tinkamos finansuoti\",\"-\")","v":"-"}]
[null,{"$f":"IF(AND(OR(F12>0,F23>0), Sąrašai!projekto_tipas=1), \"Ilgalaikio turto įsigijimas negalimas\", \"-\")","v":{"$error":"#N/A"}}]
[]
[null,{"$f":"IF(AND(OR(F34>0), Sąrašai!projekto_tipas=2), \"Prekių ir priemonių, sunaudojamų projekto metu, įsigijimas negalimas\", \"-\")","v":{"$error":"#N/A"}}]

{"sheet":"6l_FŠ","index":5,"n_rows":22,"n_cols":12,"rows_kept":22,"merged":[[0,0,0,28],[2,1,2,3],[2,4,2,5],[2,6,2,9],[3,1,3,3],[3,4,3,9],[4,1,4,3],[4,4,4,5],[4,6,4,9],[5,0,20,0],[5,1,20,3],[5,5,5,8],[5,10,5,11],[6,5,6,8],[6,10,6,11],[7,4,10,4],[7,5,10,8],[7,9,10,9],[7,10,7,11],[11,4,14,4],[11,5,14,8],[11,9,14,9],[11,10,11,11],[15,5,15,8],[15,10,15,11],[16,5,16,8],[16,10,16,11],[17,5,17,8],[17,10,17,11],[18,5,18,8],[18,10,18,11],[19,5,19,8],[19,10,19,11],[20,4,20,7],[20,8,20,9],[20,10,20,11],[21,1,21,3],[21,4,21,9],[21,10,21,11]]}
[]
["6. ","FINANSAVIMO ŠALTINIAI "]
["6.1","Planuojamų patirti išlaidų suma su PVM (nepritaikius paramos lyginamosios dalies), Eur",null,null,{"$f":"'5l_FP'!F50","v":0},null,"EŽŪFKP, Lietuvos Respublikos valstybės biudžeto lėšos ir nuosavas indėlis"]
["6.2","Taikoma intensyvumo norma, proc. ",null,null,{"$f":"'5l_FP'!H5","v":{"v":0,"d":"0.00"}}]
["6.3","Prašoma paramos sumanaus kaimo projektui įgyvendinti suma, Eur",null,null,{"$f":"'5l_FP'!H50","v":0},null,"EŽŪFKP, Lietuvos Respublikos valstybės biudžeto lėšos"]
["6.4","Sumanaus kaimo projekto finansavimo šaltinis ir suma, Eur",null,null,"Taip / Ne","Finansavimo šaltinis",{"$nulls":3},"Suma, Eur","Nuoroda į patvirtinimo dokumentą / informacijos šaltinį"]
[{"$nulls":5},"Paramos lėšos",{"$nulls":4},"Pildoma tik tuo atveju, jei numatoma vykdyti daugiau nei vieną projekto etapą arba jei pareiškėjas renkasi sąskaitų apmokėjimo būdą. "]
[{"$nulls":5},"Tinkamo  projekto vykdytojo nuosavos piniginės lėšos.",{"$nulls":4},"Nuosavos lėšos:"]
[{"$nulls":10},false,"nuosavos lėšos"]
[{"$nulls":10},false,"iš veiklos planuojamos gauti lėšos"]
[{"$nulls":10},false,"kita (įrašyti)"]
[{"$nulls":5},"Tinkamo  projekto vykdytojo partnerio nuosavos piniginės lėšos.",{"$nulls":4},"Partnerio nuosavos lėšos:"]
[{"$nulls":10},false,"nuosavos lėšos"]
[{"$nulls":10},false,"iš veiklos planuojamos gauti lėšos"]
[{"$nulls":10},false,"kita (įraštyti)"]
[{"$nulls":5},"Savivaldybės biudžeto lešomis (kai taikoma).",{"$nulls":4},"Pildoma tuo atveju, kai projektas numatomas vykdyti savivaldybės biudžeto lėšomis. "]
[{"$nulls":5},"Investuojama ekonominiais ištekliais.",{"$nulls":4},"Pildoma tuo atveju, kai projekte dalyvauja investuotojas (Įnašo dydis ne mažiau kaip 5 proc. vieno projekto tinkamų finansuoti išlaidų vertės. Jei investuotojas (-ai) prisideda prie kelių projektų įgyvendinimo, tai įnašo dydis turi būti ne mažesnis nei 5 proc. visų projektų, prie kurių prisidedama, tinkamų finansuoti išlaidų vertės, atitinkamai proporcingai finansavimo šaltiniuose nurodant įnašo dydį kiekvienam projektui)."]
[{"$nulls":5},"Pareiškėjo iš sumanaus kaimo projekte numatytos vykdyti veiklos gautinos lėšos.",{"$nulls":4},"Pildoma tuo atveju, kai pareiškėjas prie projekto įgyvendinimo prisideda iš projekte numatytos vykdyti veiklos gautinomis lėšomis, šis nuosavas indėlis turi būti pagrįstas verslo plano, finansinių ataskaitų duomenimis ir nurodytas projekto paraiškoje."]
[{"$nulls":5},"Pareiškėjo iš sumanaus kaimo projekte numatytos vykdyti veiklos gautinos lėšos, kai sumanaus kaimo projektas įgyvendinamas ne vienu etapu.",{"$nulls":4},"Pildoma tuo atveju, kai dalį projekto finansuos gautinomis paramos lėšomis, projekto paraiškoje ir verslo plane turi būti aiškiai nurodyta, kad projektas įgyvendinamas ne vienu etapu, ir atitinkamai pagrįsta, kuriame etape planuojama panaudoti gautas paramos lėšas."]
[{"$nulls":5},"Paskola (Nurodoma paskola arba finansinė nuoma (lizingas) iš finansų įmonės arba kredito įstaigos, pagrįsta dokumentais, kuriuose įrodoma paskolos arba finansinės nuomos (lizingo) suteikimo galimybė.)",{"$nulls":4},"Nurodomas finansų įstaigos pavadinimas ___________________\nTuo atveju, jei  numatoma vykdyti daugiau nei vieną projekto etapą, šioje grafoje nurodoma, kurį mokėjimo prašymą teikiant bus naudojama paskola ir paskolos dydis."]
[{"$nulls":4},"Iš viso ",{"$nulls":3},{"$f":"SUM(J7:J20)","v":{"v":0,"d":"0.00"}}]
["6.5","Išlaidų mokėjimo būdas"]

{"sheet":"7l_R","index":6,"n_rows":53,"n_cols":13,"rows_kept":53,"merged":[[4,1,4,6],[8,3,11,3],[8,5,15,5],[12,3,15,3],[20,1,20,6],[33,1,33,10],[35,1,37,1],[35,2,37,2],[35,4,35,5],[35,6,35,10],[36,4,36,10],[43,1,43,12],[44,1,46,1],[44,2,46,3],[44,4,46,4],[44,5,46,5],[44,6,44,12],[45,6,45,8],[45,9,45,12],[47,2,47,3],[48,2,48,3],[49,2,49,3],[50,2,50,3],[51,2,51,3],[52,1,52,12]]}
[]
["8.","SUMANAUS KAIMO PROJEKTO PASIEKIMŲ RODIKLIAI"]
[]
[null,"Rodiklio Nr. ","Rodiklio pavadinimas","Rodiklio skaičiavimo metodika","Matavimo vnt. ","Taip / Ne","Įsipareigojama vietos projekto įgyvendinimo metu pasiekti ir kontrolės laikotarpiu išlaikyti rodiklio reikšmę","Klaidų tikrinimas"]
["8.1","ES bendrieji rezultato rodikliai"]
["8.1.1","R.3","Žemės ūkio sektoriaus skaitmeninimas. Ūkių, pagal bendąją žemės ūkio politiką (toliau – BŽŪP) gaunančių paramą skaitmeninėms ūkininkavimo technologijoms plėtoti, skaičius","Ūkiai ir ūkininkai, gavę paramą skaitmeninėms technologijoms diegti.","vnt."]
["8.1.2","R.3","Žemės ūkio sektoriaus skaitmeninimas. Ūkių, pagal BŽŪP gaunančių paramą skaitmeninėms ūkininkavimo technologijoms plėtoti, skaičius","Fiziniai asmenys (ūkininkai ir ne tik), dalyvavę skaitmeninių gebėjimų ugdymo žemės ūkyje mokymuose.","vnt."]
["8.1.3","R.37","Ekonomikos augimas ir darbo vietų kūrimas kaimo vietovėse. BŽŪP projektais remiamas naujų darbo vietų kūrimas:","Naujai sukurtų darbo vietų skaičius (sukurtų darbo vietų skaičius turi būti išlaikomas iki vietos projekto kontrolės pabaigos)\nJei rodiklis nėra susijęs su atrankos kriterijais, pareiškėjas pats pasirenka rodiklio reikšmę atitinkamoje eilutėje.","etatai",null,{"$f":"G9","v":0}]
["8.1.4","R.37.1","Sukurtų darbo vietų skaičius pagal lytį","Jei kuriamos naujos darbo vietos, jos paskirtomos pagal lytį, jei kuriamos darbo vietos pagal lytį neskirtomos, pildomas tik R.37.1.3 p. ","etatai",null,{"$f":"SUM(G10:G12)","v":0},{"$f":"IF(G9=G13,\"Gerai\",\"Klaida, R.37.1 suma nesutampa su R.37.2 suma. Tikslinti R.37.1.1-R.37.1.1.3 arba R.37.2.1-R.37.2.3 stulpelius\")","v":"Gerai"}]
["8.1.5","R.37.1.1","Sukurtų darbo vietų skaičius moterims",null,"etatai"]
["8.1.6","R.37.1.2","Sukurtų darbo vietų skaičius vyrams",null,"etatai"]
["8.1.7","R.37.1.3","Sukurtų darbo vietų skaičius bet kurios lyties asmenims",null,"etatai"]
["8.1.8","R.37.2","Sukurtų darbo vietų skaičius pagal amžių","Jei kuriamos naujos darbo vietos, jos paskirtomos pagal amžių, jei kuriamos darbo vietos pagal amžių neskirtomos, pildomas tik R.37.2.3 p. ","etatai",null,{"$f":"G14+G15+G16+L17","v":0},{"$f":"IF(G9=G13,\"Gerai\",\"Klaida, R.37.2 suma nesutampa su R.37.1 suma. Tikslinti R.37.1.1-R.37.1.1.3 arba R.37.2.1-R.37.2.3 stulpelius\")","v":"Gerai"}]
["8.1.9","R.37.2.1","Sukurtų darbo vietų skaičius asmenims iki 40 m. (imtinai)",null,"etatai"]
["8.1.10","R.37.2.2","Sukurtų darbo vietų skaičius asmenims nuo 41 m.",null,"etatai"]
["8.1.11","R.37.2.3","Sukurtų darbo vietų skaičius bet kurio amžiaus asmenims",null,"etatai"]
["8.1.12","R.41","Europos kaimo tinklų kūrimas. Kaimo gyventojų, kuriems, naudojantis BŽŪP parama, sudarytos palankesnės sąlygos naudotis paslaugomis ir infrastruktūra, skaičius","Galutinių naudos gavėjų skaičius","Naudos gavėjų teritorija ir vnt."]
["8.1.13","R.42","Socialinės įtraukties skatinimas. Asmenų, kuriems taikomi remiami socialinės įtraukties projektai, skaičius","Galutinių naudos gavėjų skaičius","vnt."]
["8.1.14","R.41","Europos kaimo tinklų kūrimas. Kaimo gyventojų, kuriems naudojantis BŽŪP parama bus sudarytos palankesnės sąlygos naudotis paslaugomis ir infrastruktūra, skaičius.","Galutinių naudos gavėjų skaičius.","Naudos gavėjų teritorija ir vnt."]
["8.1.15","R.42","Socialinės įtraukties skatinimas. Asmenų, kuriems taikomi remiami socialinės įtraukties projektai, skaičius.","Galutinių naudos gavėjų skaičius.","vnt."]
[null,"Rodikliai (produkto, rezultato)"]
["8.1.16","P.1"]
["8.1.17","P.2"]
["8.1.18","...."]
["8.1.19",null,"Išlaikytos darbo vietos iki vietos projekto paraiškos pateikimo dienos","Vietos projekto įgyvendinimo ir kontrolės laikotarpiais turi būti išlaikytos naujos (vietos projekto įgyvendinimo metu sukurtos) darbo vietos ir darbo vietos, kurios buvo sukurtos per vienus metus iki vietos projekto paraiškos pateikimo dienos","etatai"]
["8.1.20",null,"Dalyvių  / galutinių naudos gavėjų skaičius","Projekto dalyvių / galutinių naudos gavėjų skaičius","vnt."]
["8.1.21",null,"Unikalių dalyvių skaičius","Projekte dalyvaujančių asmenų unikalių dalyvių skaičius","vnt."]
["8.1.22",null,"Mokymų (išskyrus mokymus, nurodytus pagal R.3 rodiklį)) skaičius","Projekto metu vykdomų mokymų skaičius","vnt."]
["8.1.23",null,"Renginių skaičius","Projekto metu vykdomų renginių skaičius","vnt."]
["8.1.24",null,"Sukurtų naujų produktų skaičius","Projekto metu sukurtų produktų skaičius","vnt."]
[]
[]
[]
[null,"SUMANAUS KAIMO  POVEIKIO RODIKLIAI\nSumanaus kaimo projektas turi turėti aiškius, pamatuojamus poveikio rodiklius, pagal kuriuos bus vykdoma projekto stebėsena. Poveikio rodikliai nėra laikomi rezultato rodikliais.\n"]
[null,"I","II","III","IV","V","VI","VII","VIII","IX","X"]
[null,"Eil. Nr.","Rodiklio pavadinimas","Rodiklio matavimo aprašymas","Sumanaus kaimo projekto  įgyvendinimo laikotarpis",null,"Kontrolės laikotarpis"]
[{"$nulls":3},"(veiklos (veiksmai) turi turėti aiškius, pamatuojamus poveikio rodiklius, pagal kuriuos bus vykdoma projekto ir strategijos stebėsena ir numatyto teigiamo strategijos poveikio matavimas)","Rodiklio skaitinės reikšmės projekto įgyvendinimo ir kontrolės laikotarpiais"]
[{"$nulls":4},"I metai\n<20...>","II metai\n<20...>","I metai\n<20...>","II metai\n<20...>","III metai\n<20...>","IV metai\n<20...>","V metai\n<20...>"]
[null,"1. "]
[null,"2."]
[null,"3."]
[null,"... "]
[]
[null,"PAGRINDINIAI SOCIALINIO POVEIKIO MATAVIMO RODIKLIAI *\n(Lentelėje pateikiama informacija apie pagrindinius rodiklius, kurie yra pasirenkami vykdant konkretų socialinio verslo / bendruomeninio verslo arba viešųjų paslaugų perdavimo projektą. Šių rodiklių pasiekimai yra kontroliuojami visą projekto įgyvendinimo ir kontrolės laikotarpį.)"]
[null,"Ei. Nr.","Pagrindinio rodiklio pavadinimas",null,"Pagrindinio rodiklio mato vnt.","Pagrindinio rodiklio bendra skaitinė reikšmė","Pagrindinio rodiklio skaitinės reikšmės projekto įgyvendinimo ir kontrolės laikotarpiais"]
[{"$nulls":6},"Projekto  įgyvendinimo laikotarpis",null,null,"Kontrolės laikotarpis*"]
[{"$nulls":6},"I metai","II metai","III metai","I metai","II metai","III metai","IV metai"]
[]
[]
[]
[]
[]
[null,"* Pildoma, kai teikiamas socialinio verslo / bendruomeninio verslo arba viešųjų paslaugų perdavimo projektas. Vadovaujamasi Socialinio ir bendruomeninio verslo vykdymo bei viešųjų paslaugų perdavimo projektų, pateiktų pagal Lietuvos žemės ūkio ir kaimo plėtros 2023–2027 metų strateginio plano intervencines priemones, Gairėmis ( red. nuo 2025-06-20)"]

{"sheet":"8l_TS","index":7,"n_rows":59,"n_cols":4,"rows_kept":59}
[]
["8.","PROJEKTO VYKDYTOJUI IR SUMANAUS KAIMO PROJEKTUI TAIKOMOS TINKAMUMO SĄLYGOS  "]
["Eil. Nr.","Pavadinimas","Taip / Ne / N/a","Pagrindimas "]
["8.1","Ar sumanaus kaimo projekto veikla ir išlaidos yra susijusios su remiama veikla, nurodyta Taisyklėse?","Taip"]
["8.2","Ar sumanaus kaimo projekto paraišką teikia subjektas, įvardytas galimu projekto vykdytoju Taisyklių 21 punkte?","Taip"]
["8.3","Ar projekto vykdytojas neturi nė vieno nepabaigto įgyvendinti projekto arba įgyvendina leidžiamą projektų kiekį Lietuvos kaimo plėtros 2014–2020 m. programos ir  Lietuvos žemės ūkio ir kaimo plėtros 2023–2027 metų strateginio plano   lygmeniu, kaip numatyta Taisyklių 53.10 papunktyje? \nSalyga netaikoma savivaldybių administracijoms ir kitoms biudžetinėms įstaigoms.","Taip"]
["8.4","Ar projekto vykdytojas yra registruotas ir (arba) vykdo veiklą, ir (arba) yra deklaravęs nuolatinę gyvenamąją vietą strategijos teritorijoje, kaip numatyta Taisyklių 53.5 papunktyje?","Taip"]
["8.5","Ar projekto vykdytojas per paskutinius dvejus metus (skaičiuojama nuo galutinio sprendimo dėl pažeidimo padarymo priėmimo dienos) nėra padaręs pažeidimo, susijusio su EŽŪFKP paramos, skirtos 2014–2020 metų finansavimui, panaudojimu, ar siekiu panaudoti, apie kurį teisės aktų nustatyta tvarka buvo pranešta Europos Komisijai?","Taip"]
["8.6","Ar projekto vykdytojas paraiškos pateikimo dieną nėra jaunesnis negu 18 metų? \nTaikoma, kai Taisyklėse numatytas tinkamas paramos gavėjas – fizinis asmuo.","Taip"]
["8.7","Ar projekto vykdytojas veikia sąžiningai, kaip numatyta Taisyklių 33.4 papunktyje?","Taip"]
["8.8","Ar projekto vykdytojas neturi finansinių sunkumų (pareiškėjas bankrutuoja arba yra likviduojamas)?","Taip"]
["8.9","Ar projekto vykdytojas vadovaudamasis Projektų inovatyvumo vertinimo metodika, patvirtinta Lietuvos Respublikos žemės ūkio ministro 2023 m. kovo 14 d. įsakymu Nr. 3D-181 „Dėl Projektų inovatyvumo vertinimo metodikos patvirtinimo“,  gali įrodyti, kad projektas yra inovatyvus?\nTaikomas, kai  pareiškėjas numato diegti inovacijas.","Taip","Projektų inovatyvumo vertinimo metodikos  projektas „Sartų meno rezidencijos“ atitinka:\n1)\tNaujumo kriterijų – mobilios studijos paslaugos rinkoje nėra. \n2)\tTeigiamas poveikis aplinkai ir klimatui kriterijų - žaliosios energijos didinimas bei energijos vartojimo efektyvumo didinimas (taupymas) atnaujinant ar diegiant naujas technologijas – įrengiant mobilią studiją planuojama diegti autonominę atsinaujinančios energijos sistemą (saulės baterijas). \n3)\tSkaitmeninimo kriterijų – daiktų, interneto (apima investicijas į tinklą, išmaniuosius prietaisus, jutiklius, valdiklius, kitą fizinę ir programinę įrangą, sujungiančią fizinius objektus tarpusavyje ir leidžiančią  procesus valdyti virtualiai). Siekiant užtikrinti vietos kūrybinės veiklos matomumą ir ilgalaikį poveikį, ypatingas dėmesys bus skiriamas skaitmeninei sklaidai – jungtinėje Dusetų krašto kūrėjų platformoje numatoma kurti ir viešinti menininkų darbų pristatymus, renginių transliacijas bei virtualias parodas, taip plečiant auditoriją ir stiprinant regiono kultūrinį įvaizdį. "]
["8.10","Ar projekto vykdytojas užtikrina tinkamą sumaniojo kaimo projekto finansavimo šaltinį, kaip numatyta Taisyklių 80 punkte?","Taip"]
["8.11","Ar pareiškėjas atitinka labai mažos, mažos arba vidutinės įmonės sąlygas, nustatytas Lietuvos Respublikos smulkiojo ir vidutinio verslo plėtros įstatyme?\nTaikoma, kai sumaniojo kaimo projektas yra privataus, bendruomeninio ar socialinio verslo pobūdžio.","Taip"]
["8.12","Ar projekto vykdytojas tvarko buhalterinę apskaitą, kaip numatyta Administravimo taisyklėse?","Taip"]
["8.13","Ar projekto vykdytojas neturi įsiskolinimų Lietuvos Respublikos valstybės biudžetui, Valstybinio socialinio draudimo fondo biudžetui ir Nacionalinei mokėjimo agentūrai prie Žemės ūkio ministerijos (toliau  – NMA)?","Taip"]
["8.14","Ar projekto vykdytojas vadovaujantis ES teisės aktais ir žemės ūkio ministro tvirtinama dirbtinai sukurtų sąlygų gauti paramą nustatymo metodika, nesukūrė dirbtinių sąlygų gauti paramą?","Taip"]
["8.15","Ar projekto vykdytojas užtikrina, kad sumaniojo kaimo projekte numatytos išlaidos nebuvo, nėra ir nebus finansuojami iš kitų ES fondų ir kitų viešųjų lėšų?","Taip"]
["8.16","Ar sumaniojo kaimo projekte numatyta veikla bus vykdoma strategijos teritorijoje, kaip numatyta Taisyklių 53.3 punkte? ","Taip"]
["8.17","Ar sumaniojo kaimo projekto turinys nėra susijęs su Taisyklių 19 punkte numatytomis veiklos sritimis?","Taip"]
["8.18","Ar kartu su sumaniojo kaimo projekto paraiška pateikiamas verslo planas?\nTaikoma, kai Taisyklėse numatyta sąlyga, kad turi būti pateiktas verslo planas?","Taip"]
["8.19","Ar sumaniojo kaimo projekte numatytos investicijos atitinka gyvūnų gerovės, higienos, maisto kokybės reikalavimus? \nTaikoma, kai sumaniojo kaimo projekte numatytos investicijos turi įtakos minėtų reikalavimų laikymuisi.","N/a"]
["8.20","Ar atliktas sumaniojo kaimo projekte nurodytos planuojamos ūkinės veiklos  poveikio aplinkai vertinimas ir (arba) atranka dėl planuojamos ūkinės veiklos poveikio aplinkai vertinimo?\nTaikoma, kai, vadovaujantis Lietuvos Respublikos planuojamos ūkinės veiklos poveikio aplinkai vertinimo įstatymu, privaloma atlikti projekte nurodytos planuojamos ūkinės veiklos poveikio aplinkai vertinimą ar atranką dėl planuojamos ūkinės veiklos poveikio aplinkai vertinimo.","N/a"]
["8.21","Ar sumaniojo kaimo projekto investicijos atitinka Valstybinės maisto ir veterinarijos tarnybos kontroliuojamų teisės aktų reikalavimus? \nTaikoma, kai sumaniojo kaimo projekte numatytoms investicijoms taikomi tokie reikalavimai.","N/a"]
["8.23","Ar sumaniojo kaimo projekto investicijos atitinka darbo saugos reikalavimus, kaip nurodyta techniniame reglamente „Mašinų sauga“, patvirtintame Lietuvos Respublikos socialinės apsaugos ir darbo ministro 2000 m. kovo 6 d. įsakymu Nr. 28 „Dėl techninio reglamento „Mašinų sauga“ patvirtinimo“, Elektrotechnikos gaminių saugos techniniame reglamente, patvirtintame Lietuvos Respublikos ūkio ministro 2016 m. balandžio 26 d. įsakymu Nr. 4-314 „Dėl Elektrotechnikos gaminių saugos techninio reglamento patvirtinimo“?\nTaikoma, kai sumanaus kaimo projekte numatytoms investicijoms taikomi tokie reikalavimai.","N/a"]
["8.24","Ar sumanaus kaimo projekte numatytos prekės yra naujos, nenaudotos ir atitika taikytinus ES ir nacionalinius standartus?\nTaikoma, kai sumanaus kaimo  projekte įsigyjamos prekės.","Taip"]
["8.25","Jeigu sumaniojo kaimo projekte numatytos investicijos į nekilnojamąjį turtą (naujo statinio statybas, rekonstravimą, remontą), ar jos atitinka Taisyklių 69 papunktyje numatytus reikalavimus?\nTaikoma, kai sumaniojo kaimo projekte numatytos investicijos į nekilnojamąjį turtą.","Ne"]
["8.26","Ar sumaniojo kaimo projekte numatytos tinkamos finansuoti išlaidos yra būtinos projektui įgyvendinti, realiai suplanuotos ir pagrįstos?","Taip"]
["8.27","Ar sumaniojo kaimo projekte numatytos tinkamos finansuoti išlaidos neviršyja vidutinių atitinkamų prekių, paslaugų, darbų rinkos kainų, kaip numatyta Taisyklių 73.1 papunktyje?","Taip"]
["8.28","Ar sumaniojo kaimo projekte numatytos tinkamos finansuoti išlaidos neviršyja didžiausios paramos, numatytos sumaniojo kaimo projektui įgyvendinti, dydžio ir didžiausios galimo paramos sumaniojo kaimo projektui įgyvendinti intensyvumo normos, nurodytos Taisyklėse?","Taip"]
["8.29","Ar sumaniojo kaimo projekte numatytos tinkamos finansuoti išlaidos patirtos nepažeidžiant pirkimų tvarkos?\nTaikoma, kai teikiama vietos projekto paraiška ir atlikti pirkimai.","Taip"]
["8.30","Ar sumaniojo kaimo projekte numatytos tinkamos finansuoti išlaidos patirtos tinkamu laikotarpiu, kaip numatyta Taisyklių 73.5 papunktyje?","N/a"]
["8.31","Ar sumaniojo kaimo projekte  visos išlaidos, numatytos finansiniame plane, yra tinkamos finansuoti?","Taip"]
["8.32","Ar sumaniojo kaimo projekte numatyti pasiekti  ir priežiūros rodikliai atitinka pasiekimo rodiklius, numatytus Taisyklėse (kai taikoma)?","Taip"]
["8.33","Ar sumaniojo kaimo projekto paraiška pateikta kartu su partneriais?\n","Ne"]
["8.34","Ar partneris neturi įsiskolinimų Lietuvos Respublikos valstybės biudžetui ir Valstybinio socialinio draudimo fondo biudžetui?\nTaikoma, kai sumaniojo kaimo projektas teikiamas kartu su partneriu (-iais).","N/a"]
["8.35","Ar partneris, vadovaujantis ES teisės aktais ir žemės ūkio ministro tvirtinama dirbtinai sukurtų sąlygų gauti paramą nustatymo metodika, nesukūrė dirbtinių sąlygų gauti paramą?\nTaikoma, kai sumaniojo kaimo projektas teikiamas kartu su partneriu (-iais).","N/a"]
["8.36","Ar partneris neturi finansinių sunkumų (pareiškėjas bankrutuoja arba yra likviduojamas)?\nTaikoma, kai sumaniojo kaimo projektas teikiamas kartu su partneriu (-iais).","N/a"]
["8.37","Ar partneris per paskutinius dvejus metus (skaičiuojama nuo galutinio sprendimo dėl pažeidimo padarymo priėmimo dienos) nėra padaręs pažeidimo, susijusio su EŽŪFKP paramos, skirtos 2014–2020 metų finansavimui, panaudojimu, ar siekiu panaudoti, apie kurį teisės aktų nustatyta tvarka buvo pranešta Europos Komisijai?\nTaikoma, kai sumaniojo kaimo projektas teikiamas kartu su partneriu (-iais).","N/a"]
["8.38","Ar parneris paraiškos pateikimo dieną nėra jaunesnis negu 18 metų? \nTaikoma, kai vietos projektas teikiamas kartu su partneriu (-iais) ir partneriu yra fizinis asmuo.","N/a"]
["8.39","Ar su paraiška pateikiama jungtinės veiklos sutartis, atitinka Taisyklių 49 punktą?\nTaikoma, kai sumaniojo kaimo  projektas teikiamas kartu su partneriu (-iais).","N/a"]
["8.40","Ar projektas įgyvendinamas pagal pasirinktą strategijos temą, nurodytą Taisyklių 6 punkte?"]
["8.41","Ar buvote susijęs su kitais strategijos projektais, t. y. projekto tikslas (-ai), veiklos ir rezultatai turi papildyti kitus projektus, siekti bendro teigiamo poveikio strategijai. Projektas neturėtų veikti izoliuotai, o jo veikla (-os) turėtų būti suderinta (-os), kad būtų užtikrintas strategijos efektyvumas ir ilgalaikis tvarumas?"]
["8.42","Ar tikslas (-i) atitinka strategijos, pagal kurią teikiamas projektas, tikslą (-us) ir bus prisidedama prie jo (-ų) įgyvendinimo per teigiamą  poveikį strategijai?"]
["8.43","Ar projekto veikla (-omis) ir suplanuota (-omis) investicija (-omis) įgyvendinamas (-i) sumanus (-ūs) sprendimas (-ai), kuriuo (-iais) siekiama bent vieno projekto rezultato rodiklio, nurodyto Taisyklių 7 punkte, ir prisidedama prie strategijos problemos sprendimo?"]
["8.44","Ar uždaviniai aiškiai apibrėžti, parodo projekto esmę, išmatuojami (kiekybiškai išreikšti ir pamatuojami) ir įvykdomi, aiški veiklų pradžios ir pabaigos data?"]
["8.45","Ar rezultatais siekiama naudos visuomenei, t. y. turi būti kuriamos viešosios gėrybės visai projekte (strategijoje) numatytai teritorijai ir jos gyventojams ar konkrečiai tikslinei grupei?"]
["8.46","Ar investicijos į infrastruktūrą nukreiptos tik visuomenės viešiesiems poreikiams tenkinti, išskyrus atvejus, kai prašoma paramos privačiai infrastruktūrai, kuri yra būtina projekte numatytoms veikloms ir (ar) paslaugoms teikti (pvz., privažiavimo sutvarkymas į parduotuvę ar lauko žaidimų aikštelę prie bendruomenės namų ir pan.)?"]
["8.47","Ar veiklos (veiksmai) turi aiškius, pamatuojamus poveikio rodiklius, pagal kuriuos bus vykdoma projekto ir strategijos stebėsena ir numatyto teigiamo strategijos poveikio matavimas? Poveikio rodikliai nėra laikomi rezultato rodikliais."]
["8.48","Ar įgyvendinimo poreikis tenkina strategijos teritorijos ir jos gyventojų poreikius?"]
["8.49","Ar veiklos yra suderintos su ES horizontaliosiomis politikos sritimis, darniu vystymusi, įskaitant aplinkosaugą ir klimato kaitos mažinimo veiksmus?"]
["8.50","Ar projektas įgyvendinamas strategijos teritorijoje, jeigu projekte numatyta ekonominė veikla, susijusi su prekių ir (arba) produktų gamyba, perdirbimu, rinkodara (paruošimu pardavimui, sandėliavimu)? Iš paramos lėšų įrengtos gamybinės patalpos, sandėliai, įsigyta technika, įranga turi būti projekto nurodytoje vietoje, kuri turi būti strategijos teritorijoje. Strategijos teritorijoje pagamintų prekių ir produktų pardavimas galimas strategijos teritorijoje ir už jos ribų."]
["8.51","Ar projektas įgyvendinamas strategijos teritorijoje ir (arba) už jos ribų, jeigu projekte numatyta ekonominė veikla, susijusi su mobiliąja prekyba, paslaugų teikimu, taip pat atlygintinų ir neatlygintinų pavėžėjimo paslaugų teikimu? Paramos lėšomis įrengtos patalpos visais atvejais turi būti strategijos teritorijoje, o paramos lėšomis įsigyta technika ir (arba) įranga, susijusi su mobiliąja prekyba, paslaugų teikimu, veiklų nevykdymo laikotarpiu, turi būti saugoma projekto nurodytoje vietoje, kuri turi būti strategijos teritorijoje."]
["8.52","Ar projekte numatyta veikla, susijusi su investicijomis į nekilnojamąjį turtą, nekilnojamojo turto registracijos vieta turi būti strategijos teritorijoje?"]
["8.53","Ar projektas įgyvendinamas strategijos teritorijoje, jeigu projekte numatyta neekonominė, socialinio pobūdžio veikla?"]
["8.54","Ar projektas įgyvendinamas strategijos teritorijoje ir (arba) kitų Lietuvos Respublikos savivaldybių teritorijose, jeigu projekte numatyta neekonominė, socialinio pobūdžio veikla, kurios tikslinė grupė – strategijos teritorijos gyventojų grupės arba NVO?"]
["8.55","Jeigu projektas yra privataus, bendruomeninio ar socialinio verslo pobūdžio ir jį teikia juridinis arba fizinis asmuo, ar jis atitinka labai mažai, mažai ir vidutinei įmonei keliamus reikalavimus, nurodytus Lietuvos Respublikos smulkiojo ir vidutinio verslo plėtros įstatyme?"]
["8.56","Ar fizinių asmenų, viešųjų juridinių asmenų, kai jų steigėjas ir (ar) projekto paraiškos pateikimo dieną vienintelis dalyvis yra vienas fizinis asmuo, arba fizinis asmuo ir jo sutuoktinis, kaip jis apibrėžtas Lietuvos Respublikos civilinio kodekso 3.135 straipsnyje, projektai gali būti remiami tik tuo atveju, jeigu jie yra privataus verslo pobūdžio (fizinių asmenų privačiais projektais laikomi projektai, kurie yra teikiami fizinių asmenų, projekto pateikimo dieną arba projekto įgyvendinimo metu veikiančių pagal verslo liudijimą arba individualios veiklos pažymą, arba teikiami uždarųjų akcinių bendrovių ar kitą teisinį statusą turinčių juridinių asmenų, kai jų steigėjas yra vienas fizinis asmuo, arba fizinis asmuo ir jo sutuoktinis, kaip jis apibrėžtas Lietuvos Respublikos civilinio kodekso 3.135 straipsnyje, ir jiems taikomas paramos intensyvumas, nustatytas Taisyklių 78.3 papunktyje)?"]
["8.57","Ar projektas yra viešosios naudos (ne pelno) projektas, skirtas vietos bendruomenės atsparumui didinti ar kurti, jame numatomos veiklos ir investicijos, skirtos pasirengimui įveikti bei valdyti krizes (ypač sukeltas nenugalimos jėgos (force majeure) ar kitų ekstremalių situacijų), sumažinti bendruomenės pažeidžiamumą ir priklausomumą nuo išorinių išteklių, didinant saugą (pvz., skatinant savitarpio pagalbą, kuriant ar stiprinant pagalbos valdymo ir socialinės paramos priemones, tokias kaip savanoriškos pagalbos tinklai ar pagalbos punktai, maisto pristatymas pažeidžiamiems gyventojams, laikinos pastogės ekstremalių situacijų atveju, lietaus vandens surinkimo sistemos ar kompostavimo iniciatyvos, bendruomeniniai saulės elektrinių projektai)?"]

{"sheet":"8l-1_inovatyvumas","index":8,"n_rows":43,"n_cols":16,"rows_kept":43,"merged":[[2,1,2,10],[3,1,3,10],[4,1,4,10],[5,1,5,10],[6,1,6,10],[8,1,8,11],[9,1,9,3],[9,4,9,6],[9,7,9,8],[10,1,10,3],[10,4,10,6],[10,7,10,8],[11,1,11,11],[12,1,12,3],[12,4,12,6],[12,7,12,8],[13,1,13,3],[13,4,19,6],[13,7,19,8],[13,9,19,9],[13,10,19,10],[14,1,14,3],[15,1,15,3],[16,1,16,3],[17,1,17,3],[18,1,18,3],[19,1,19,3],[20,1,20,11],[21,1,21,3],[21,4,21,6],[21,7,21,8],[22,1,22,3],[22,4,28,6],[22,7,28,8],[22,9,28,9],[22,10,28,10],[23,1,23,3],[24,1,24,3],[25,1,25,3],[26,1,26,3],[27,1,27,3],[28,1,28,3],[29,1,29,11],[30,1,30,3],[30,4,30,6],[30,7,30,9],[31,1,31,3],[31,4,31,6],[31,7,31,9],[33,1,36,1],[33,8,35,8],[33,9,35,9],[33,10,35,10],[33,12,35,12],[33,13,35,13],[34,2,34,3],[34,4,34,5],[34,6,34,7],[34,11,35,11],[37,1,37,16],[38,1,38,16],[39,1,39,16],[40,1,40,16],[41,1,41,16],[42,1,42,16]]}
[]
["8.1. ","INOVATYVUMAS (pildoma tuo atveju, jeigu projekte diegiamos inovacijos)"]
[null,"Paslaugos inovacija – keičianti naudotojų būseną nemateriali veikla, kuri kuriama ir naudojama tuo pat metu (pvz.: aptarnavimo, remonto ar gamybos paslaugos kitiems gamintojams, buitinės paslaugos asmenims ar tobulinimo, mokymo, konsultavimo ir pan. paslaugos) ir kuri reikšmingai skiriasi nuo anksčiau veiklos subjekto teiktų paslaugų."]
[null,"Prekės inovacija – naujų savybių ir (arba) naują paskirtį turintis materialusis objektas ar tam tikras intelektinis produktas, kurie turi ar gali turėti paklausą ir kuriems gali būti nustatytos nuosavybės teisės."]
[null,"Produkto inovacija – naujų savybių ir (arba) naują paskirtį turinti prekė ar paslauga, kurios reikšmingai skiriasi nuo ankstesnių veiklos subjekto prekių ar paslaugų ir kurios yra pateiktos rinkai."]
[null,"Proceso inovacija – naujas arba patobulintas vienai ar kelioms veiklos funkcijoms skirtas procesas, reikšmingai besiskiriantis nuo ankstesnių subjekto naudotų  veiklos procesų. "]
[null,"Socialinė inovacija – naujų socialinių idėjų vystymas, veikiančių novatoriškų metodų ir praktikų iš kitų sektorių perkėlimas ir įgyvendinimas (produktai, paslaugos, mechanizmai), siekiant patenkinti socialinius poreikius, spręsti įsisenėjusias socialines bei aplinkosaugines problemas bei kurti naujus socialinius ryšius ir skatinti bendradarbiavimą."]
[]
[null,"1. Naujumas"]
[null,"Požymiai",null,null,"Apibūdinimas",null,null,"Informacijos šaltiniai",null,"Suteikiami balai","Suteikti balai projektui","Pagrindimas"]
[null,"Naujumas rinkoje, taikant principą, kad inovacija įgyvendinus projektą  turi būti įdiegta ir reikšmingai skirtis nuo ankstesnių subjekto produktų ar siūlytų ir naudotų procesų, ir tai nėra įprastas pakeitimas ar atnaujinimas.",null,null,"Įdiegtas produktas laikomas įvestu į rinką, kai jis tampa prieinamas naudoti numatytiesiems naudotojams. Procesas laikomas pristatytu rinkai, kai jį pirmą kartą pradedama faktiškai naudoti subjekto veikloje. \nVertinant diegiamų produktų ar procesų pokyčio reikšmingumą atsižvelgiama, kad diegiamas produktas ar procesas  pasižymėtų viena ar keletu naujų  savybių ir (arba) nauja paskirtimi, kurios reikšmingai skiriasi nuo subjekto anksčiau siūlytų ar naudotų produktų savybių (apima kokybę, technines specifikacijas, patikimumą, konkurencinį pranašumą, patvarumą, ekonominį veiksmingumą naudojimo metu, patogumą, naudojimo galimybes ir palankumą naudotojui ir kt.) arba procesų savybių (pvz., efektyvumas, išteklių naudojimo efektyvumas, patikimumas ir atsparumas, patogumas ir naudojimo galimybės ir pan.).\n„Reikšmingo“ skirtumo sąvoka neapima smulkių pakeitimų ar pagerinimų, kai diegiamas produktas ar procesas nepasižymi naujomis savybėmis ir (arba) nauja paskirtimi. \n",null,null,"1. Patvirtinimas, kad ne mažiau kaip 50 proc. projekto tinkamų finansuoti išlaidų vertės atitiks  kriterijaus požymį.\n2. Patvirtinimas, kad inovacija bus įdiegta per projekto įgyvendinimo laikotarpį ir visiškai atitiks planuojamus požymius iki kontrolės laikotarpio pabaigos.\n 3. Pagrindimas, kad naujumas subjektui nebus smulkus pakeitimas. Pagrindimui nurodyti  reikšmingus skirtumus, kurie gali būti kiekybiškai ar kokybiškai apibūdinti, lyginant tarp esamų rinkoje ar naudojamų ir diegiamų produktų, įrangos ar technologijų su nuoroda į informacijos šaltinį. \nInformacijos šaltiniai: gamintojo techninės specifikacijos, alternatyvų, bandymų, įgyvendintų EIP arba demonstracinių / sklaidos projektų vieši rezultatų šaltiniai, bendradarbiavimo su mokslo institucija (sutarties pagrindu) gauti rezultatai, mokslo institucijų išvados, rekomendacijos ar kiti. Informacijos šaltiniai turėtų būti ne senesni nei 3 metai iki paraiškos pateikimo dienos. Nesant informacijos šaltinio, pateikiama pareiškėjo rinkos apžvalga, kurioje aprašomi rinkoje esami produktai ar technologijos, pagal savo paskirtį ir funkcijas atitinkantys projekte diegiamus, ir aprašomi projekte diegiami produktai ar technologijos, pažymint bent vieną ar keletą savybių, kurios diegiamuose produktuose ar technologijose reikšmingai skiriasi nuo rinkoje esamų.",null,"5 balai – naujumas atitinka nurodytą požymį.\n0 balų – nėra atitikties pagal nurodytą požymį. "]
[null,"2. Teigiamas poveikis aplinkai ir klimatui"]
[null,"Požymiai",null,null,"Apibūdinimas",null,null,"Informacijos šaltiniai",null,"Suteikiami balai","Suteikti balai projektui","Pagrindimas"]
[null,"1. dirvožemio kokybės gerinimas (erozijos mažinimas, humusingumo išsaugojimas, rūgštingumo reguliavimas, užterštumo sunkiaisiais metalais ir pan.) ir darnus maisto medžiagų valdymas (maistingųjų medžiagų balanso dirvožemyje palaikymas, jų išplovimo į vandens telkinius mažinimas ir pan.), išleidžiamo vandens ir pramoninių tvenkinių  kokybės gerinimas; ",null,null,"Inovacijos teigiamas poveikis aplinkai vertinamas kompleksiškai, atskirai įvertinant, ar inovacija daro įtaką ir prisideda prie dirvožemio, oro, vandens kokybės pagerinimo, maisto medžiagų išplovimų iš dirvožemio mažinimo, tausaus vandens naudojimo gerinimo, atliekų perdirbimo, gyvūnų gerovės ir sveikatingumo didinimo. Inovacijos poveikis klimato  pokyčiui švelninti vertinamas ŠESD emisijų mažinimo požiūriu, žaliosios energijos iš žemės ir miško šaltinių bei energijos efektyvumo požiūriais. Poveikio dydis nevertinamas. ",null,null,"Informacija pateikiama verslo plane ir (ar) paraiškoje:\n1. patvirtinimas, kad projekto investicijos atitiks vieną ar kelis šio kriterijaus požymius, nurodant kuriuos (atitiktis požymiui įskaitoma, jeigu diegiamos priemonės turi įtakos bent vienam jame išvardytam elementui), iki kontrolės laikotarpio pabaigos;\n2. pateikiamas pagrindimas, kaip projektas atitiks tam tikrus šio kriterijaus požymius, įskaitant atskirus jų elementus, paraiškoje trumpai nurodant, kokios diegiamos priemonės darys teigiamą poveikį.",null,"1 balas – atitinka pagal vieną požymį; \n2 balai – atitinka pagal du požymius; \n3 balai – atitinka pagal tris požymius; \n4 balai – atitinka pagal keturis požymius; \n5 balai – atitinka pagal penkis ar daugiau  požymių; \n0 balų – neatitinka nė vieno požymio."]
[null,"2. vandens kokybės apsauga (vandens telkinių, uždarų apytakinių sistemų  geros aplinkosauginės būklės palaikymas), tausus vandens naudojimas (uždarų apytakinių sistemų  naudojimo tikslams, drėkinimo tikslams, gyvulių girdymui, vykdant veiklą pramonės sektoriuje ir pan.) bei vandens atsargų dirvožemyje sukaupimas (pvz., išmaniąja drenažo sistema ar kt.);"]
[null,"3. oro kokybės gerinimas (kietųjų dalelių, angies monoksido, sieros dioksido, azoto dioksido mažinimas naudojant atsinaujinančius energetinius šaltinius, taupant energiją, naudojant mažiau karšto vandens, rūšiuojant atliekas ar pan.);  "]
[null,"4. klimato kaitos švelninimas (ŠESD emisijų mažinimas mažinant kuro deginimą, energijos naudojimą,  diegiant mėšlo ir srutų tvarkymo sistemas, mažinant organinių ir sintetinių trąšų naudojimą, kaupiant  anglies dioksidą dirvožemyje, biomasėje, durpynuose, miškuose ir pan.);"]
[null,"5. žaliosios energijos didinimas bei energijos vartojimo efektyvumo didinimas (taupymas) atnaujinant ar diegiant naujas technologijas;"]
[null,"6. beatliekių ir mažų atliekų technologijų taikymas (apima veiklas, kuriomis pereinama prie tvarių, sveikų, efektyviai išteklius naudojančių, žiediškumo principais grįstų ir integracinių maisto ir ūkininkavimo sistemų, investicijos mažina atliekų susidarymą, jų pakartotinį panaudojimą, perdirbamų pakuočių naudojimą ir pan.);"]
[null,"7. gyvūnų gerovę  ir sveikatingumą skatinančių technologijų taikymas (auginimo intensyvumo mažinimas, auginimas be antibiotikų, perėjimas prie gyvūnų laisvo laikymo ir pan.). "]
[null,"3. Skaitmeninimas"]
[null,"Požymiai",null,null,"Apibūdinimas",null,null,"Informacijos šaltiniai",null,"Suteikiami balai","Suteikti balai projektui","Pagrindimas"]
[null,"1. Palydovinių sistemų panaudojimas (apima Globalios esamos vietos padėties nustatymo sistemos GPS diegimo projektus, kai žemės ūkio sektoriuje naudojantis palydovų duomenimis vykdoma tikslioji žemdirbystė: sėjama, tręšiami laukai bei purškiami pasėliai, nuimamas derlius ir kita);",null,null,"Skaitmeninimas kaip inovatyvumo vertinimo kriterijus atspindi, kiek projektu diegiamomis skaitmeninėmis technologijomis būtų generuojami ir integruojami duomenys, kurių pagrindu galėtų būti priimami sprendimai. ",null,null,"Informacija pateikiama verslo plane ir (ar) paraiškoje: 1. patvirtinimas, kad skaitmeninės technologijos (nurodant kurios) bus įdiegtos per projekto įgyvendinimo laikotarpį; 2. pateikiamas aprašymas, kokie konkretūs duomenys būtų generuojami įdiegus nurodytas skaitmenines technologijas ir kokiems tikslams jie galėtų būti naudojami; 3. patvirtinimas, kad tam tikri įdiegtomis skaitmeninėmis technologijomis generuojami duomenys bus teikiami valstybės informaciniams ištekliams, siekiant juos integruoti ir  panaudoti administraciniais tikslais (duomenų teikimas viešoms platformoms, registrams ir pan.).",null,"3 balai – jei diegiamomis išvardytomis skaitmeninėmis technologijomis generuojami duomenys kaupiami subjekto (ūkio, įmonės, organizacijos) lygmeniu; \n5 balai – jei diegiamomis išvardytomis skaitmeninėmis technologijomis generuojami duomenys laikantis Bendrojo duomenų apsaugos reglamento reikalavimų, teikiami valstybės informaciniams ištekliams, siekiant juos panaudoti administraciniais tikslais;\n 0 balų – jei nėra diegiama nė viena iš išvardytų skaitmeninių technologijų."]
[null,"2. Daiktų internetas (apima investicijas į tinklą, išmaniuosius prietaisus, jutiklius, valdiklius, kitą fizinę ir programinę įrangą, sujungiančią fizinius objektus tarpusavyje ir leidžiančią  procesus valdyti virtualiai. Apima tiek žuvininkystės,  augalininkystės, tiek gyvulių auginimo, šėrimo, melžimo procesus, tiek visas kitas su pirmine gamyba, logistika, perdirbimu, rinkodara ir pan. susijusias veiklas);"]
[null,"3. Blokų grandinės technologija (apima projektus, kai ji diegiama  kaip potenciali ateities technologija, naudojama ir žemės ūkyje, kai reikalingas patogus ir skaidrus virtualių duomenų ar duomenų blokų  valdymas pasitikėjimo pagrindu (technologija leidžia subjektams kontaktuoti tiesiogiai, be trečiųjų šalių, o naudojant specialią kriptografiją sukurta tarsi skaitmeninė „buhalterijos knyga“, kurioje esančius mokėjimus ar mainus gali matyti visi prisijungusieji, o kad pervedimas būtų sėkmingas, visi į tokį tinklą sujungti kompiuteriai turi jį patvirtinti);"]
[null,"4. Automatizavimas ir robotika (apima projektus, kuriuose diegiami ir naudojami automatizavimo ir (ar) robotikos sprendimai procesams modernizuoti);"]
[null,"5. Debesų kompiuterija ir dideli duomenys (apima projektus, kurių įgyvendinimo metu diegiama, taikoma ar perkama Debesų kompiuterija – kompiuterinė paslauga, teikiama pagal pareikalavimą, naudojant kompiuterinius išteklius, išsklaidytus internete. Taip pat apima projektus, kuriuose naudojami  dideli duomenys kaip didžiulis kompiuterių duomenų rinkinys, įskaitant struktūrizuotus, nestruktūruotus, pusiau struktūrizuotus duomenis, kurių negalima apdoroti tradiciniais algoritmais ir metodais);"]
[null,"6. Valdymo sistemos (apima projektus, kai diegiama  programinė įranga, skirta kompiuterizuoti įmonės valdymą, galinti apimti ir integruotis į visus įmonės verslo procesus, naudojama apskaitos tvarkymo palengvinimui, efektyviam visų resursų išnaudojimui, kontaktų valdymui, efektyviam tiekimo grandinės veikimui užtikrinti, analitinės įmonės veiklos ataskaitų sudarymui ir pan.);"]
[null,"7. Dirbtinis intelektas (apima įvairius projektus, kuriuose dirbtinis intelektas gali būti naudojamas užtikrinti sveikesnį maistą mažinant trąšų, pesticidų, herbicidų  ir drėkinimo naudojimą bei taip sumažinti poveikį aplinkai, kai piktžolės, augalai, augimo sąlygos atpažįstamos lauke, o dirbtinio intelekto sprendimai transformuojami į tinkamus veiksmus pagal užprogramuojamą tikslą. Taip pat naudojama  gyvūnų judėjimui, temperatūrai ir pašarų vartojimui stebėti, produktų perdirbimo procesuose ir pan.)."]
[null,"4. Teigiamas poveikis socialinei  ekonomikai"]
[null,"Požymiai",null,null,"Apibūdinimas",null,null,"Informacijos šaltiniai",null,null,"Taip/Ne","Pagrindimas"]
[null,"Projekto teigiamas poveikis socialinei ekonomikai vertinamas kompleksiškai, atskirai vertinant, ar kuriamas teigiamas pokytis kultūros, švietimo, užimtumo, sveikatos srityse, ar numatytos ir įgyvendintos inovatyvios prevencinės priemonės įvairiose srityse.",null,null,"Inovacijos poveikis socialinėje ekonomikoje vertinamas pagal individualius rodiklių ir jų apskaičiavimo, pokyčių įvertinimo metodikų rinkinius, kurie iš anksto (paramos paraiškoje) numatomi pagal Socialinio verslo poveikio matavimo skaičiuoklę, tvirtinamą žemės ūkio ministro įsakymu.",null,null,"Informacija pateikiama paramos paraiškoje ir (ar) verslo plane, užpildant Socialinio poveikio matavimo skaičiuoklę ir pasirenkant ar nurodant konkrečių pasiekimų rodiklių planuojamus pokyčius bei jų apskaičiavimo, matavimo metodikas."]
[]
[null,"Projektų inovatyvumo vertinimas","Kriterijai",{"$nulls":5},"Svorio vnt. dalių suma =1.00 kontrolė ","Maksimali svorio balų suma\nSmax\n","Suteikta svorio balų suma\nS\n",null,"Suteikta svorio balų dalis\nS /Smax ,%\n","Inovatyvumo lygis"]
[null,null,"Naujumas",null,"Teigiamas poveikis aplinkai ir klimatui",null,"Skaitmeninimas",{"$nulls":4},"Apibendrintas įvertinimas"]
[null,null,"Balas       (0-5)","Svoris, vnt","Balas       (0-5)","Svoris, vnt.","Balas       (0-5)","Svoris, vnt."]
[null,null,{"$f":"+K11","v":0},0.5,{"$f":"+K14","v":0},0.3,{"$f":"+K23","v":0},0.2,{"$f":"D37+F37+H37","v":{"v":1,"d":"1.00"}},{"$f":"5*D37+5*F37+5*H37","v":5},{"$f":"(C37*D37+E37*F37+G37*H37)","v":{"v":0,"d":"0.0"}},null,{"$f":"IF(OR(C37<>\"\",E37<>\"\",G37<>\"\"),K37/J37,\"\")","v":{"v":0,"d":"0.00%"}},{"$f":"IF(M37<>\"\",IF(M37>0.75,\"I inovatyvumo lygis\",IF(M37>0.5,\"II inovatyvumo lygis\",IF(M37>0.3,\"III inovatyvumo lygis\",IF(M37<=0.3,\"IV inovatyvumo lygis\")))),\"V inovatyvumo lygis\")","v":"IV inovatyvumo lygis"},null,"!! tikrinti formules "]
[null,"Inovatyvumo lygiai:"]
[null,"I lygis – išskirtinai inovatyvus projektas, kai vertinimo metu surenkama daugiau nei 75 proc. maksimalios svorio balų sumos. "]
[null,"II lygis – reikšmingai inovatyvus projektas, kai vertinimo metu surenkama daugiau nei 50 iki 75 proc. imtinai maksimalios svorio balų sumos. "]
[null,"III lygis – vidutiniškai inovatyvus projektas, kai vertinimo metu surenkama daugiau nei 30 iki 50 proc. imtinai maksimalios svorio balų sumos. "]
[null,"IV lygis – nereikšmingai inovatyvus projektas, kai vertinimo metu surenkama iki 30 proc. imtinai maksimalios svorio balų sumos."]
[null,"V lygis – neinovatyvus projektas, kai vertinimo metu inovatyvumo kriterijų atrankos balai nebuvo suteikti. "]

{"sheet":"9l_ĮS","index":9,"n_rows":26,"n_cols":3,"rows_kept":26}
[]
["9."," PROJEKTO VYKDYTOJO ĮSIPAREIGOJIMAI "]
["Eil. Nr.","Pavadinimas","Taip / Ne / N/a"]
["9.1","Ar įsipareigojate nenutraukti ar neperkelti gamybinės veiklos už strateginio plano įgyvendinimo teritorijos ribų?"]
["9.2","Ar įsipareigojate nepakeisti infrastruktūros objekto ar jo dalies nuosavybės teisių, neparduoti ir kitaip neperleisti kitam asmeniui, neperduoti (nuoma, panauda ir kt.), be NMA sutikimo neįkeisti už paramos lėšas įgyto turto nuo paramos sutarties sudarymo, kai sutartis nesudaroma,  nuo sprendimo skirti paramą datos iki projekto kontrolės laikotarpio pabaigo?"]
["9.3","Ar įsipareigojate nepakeisti veiklos pobūdžio, tikslų ar įgyvendinimo sąlygų nuo paramos sutarties sudarymo, kai sutartis nesudaroma, nuo sprendimo skirti paramą datos iki projekto kontrolės laikotarpio pabaigos, kai tokie veiksmai pakenkia pradiniams projekto tikslams?"]
["9.4","Ar įsipareigojate  tvarkyti buhalterinę apskaitą pagal Lietuvos Respublikos teisės aktų reikalavimus visą projekto įgyvendinimo ir kontrolės laikotarpį ?"]
["9.5","Ar įsipareigojate įvykus įvykiui, kurio metu buvo sugadintas ar sunaikintas paramos lėšomis įsigytas ar sukurtas turtas,  atkurti apdraustą ir neapdraustą turtą ne mažesne negu atkuriamąja verte ir ne blogesnių techninių parametrų?"]
["9.6","Ar įsipareigojate sudaryti sąlygas asmenims, turintiems teisę audituoti ir (arba) kontroliuoti, tikrinti, kaip yra vykdoma veikla, laikomasi sąlygų, už ką buvo skirta kompensacinė išmoka, kaip yra vykdomas projektas ir (arba) kaip vykdoma veikla po lėšų projektui įgyvendinti skyrimo ir (arba) iki projekto įgyvendinimo pabaigos?"]
["9.7","Ar įsipareigojate, kad  išperkamąja (finansine) nuoma įsigytas turtas turi tapti paramos gavėjo nuosavybe iki projekto įgyvendinimo pabaigos?"]
["9.8","Ar įsipareigojate nuo paramos paraiškos pateikimo dienos iki projekto kontrolės laikotarpio pabaigos užtikrinti, kad su projektu susijusių buhalterinių operacijų įrašai būtų atskiriami nuo kitų, įprastinių paramos gavėjo operacijų? "]
["9.9","Ar įsipareigojate įsigyti (visiškai apmokėti, pristatyti į projekto įgyvendinimo vietą, įregistruoti viešuosiuose registruose (jei registracija privaloma)) bei naudoti projekte numatytai veiklai vykdyti visas projekte numatytas investicijas ir saugoti patirtų išlaidų ir jų apmokėjimo įrodymo dokumentus (kai parama mokama išmokos forma, paramos gavėjas neteikia patirtų išlaidų ir jų apmokėjimo įrodymo dokumentų, jeigu to nepaprašo NMA)? Investicijas įsigyti ne iš susijusių asmenų."]
["9.10","Ar įsipareigojate užbaigę statybos darbus ne vėliau kaip iki galutinio mokėjimo prašymo pateikimo dienos statybos užbaigimo dokumentus teisės aktų nustatyta tvarka įregistruoti informacinėje sistemoje „Infostatyba“? Jei statybos užbaigimo dokumentų informacinėje sistemoje „Infostatyba“ pateikti neprivaloma, statybos užbaigimo dokumentai turi būti pateikti NMA ne vėliau kaip su galutiniu mokėjimo prašymu.\nTaikoma, kai projekte numatyti statybos darbai."]
["9.11","Ar įsipareigojate iki galutinio mokėjimo prašymo pateikimo dienos parengti naudoti įrangą ir (arba) techniką ir vėliausiai su galutiniu mokėjimo prašymu pateikti įrangos ir (arba) technikos įrengimo ir (arba) sumontavimo darbų užbaigimo aktus ar kitus lygiaverčius dokumentus, kuriuose patvirtinama, kad už paramos lėšas įsigyta įranga ir (arba) technika tinkamai sumontuota ir veikia?"]
["9.12","Ar įsipareigojate laiku pateikti mokėjimo prašymus ir reikiamus jų priedus?"]
["9.13","Ar įsipareigojate projektą įgyvendinti per paramos sutartyje, kai sutartis nesudaroma, paramos paraiškoje nurodytą laikotarpį?"]
["9.14","Ar įsipareigojate sumaniojo kaimo projekto kontrolės laikotarpiu laiku teikti užbaigto projekto metines atsakaitas  NMA ir vietos veiklos grupei?"]
["9.15","Ar įsipareigojate viešinti paramą, vadovaujantis Suteiktos paramos iš EŽŪFKP lėšų pagal Lietuvos žemės ūkio ir kaimo plėtros 2023–2027 metų strateginį planą viešinimo taisyklėmis, patvirtintomis Lietuvos Respublikos žemės ūkio ministro 2023  m. kovo 31 d.  įsakymu Nr. 3D-201 „Dėl Suteiktos paramos iš EŽŪFKP lėšų pagal Lietuvos žemės ūkio ir kaimo plėtros 2023–2027 metų strateginį planą viešinimo taisyklių patvirtinimo“? ((netaikoma projekto vykdytojo partneriui)"]
["9.16","Ar įsipareigojate teikti visą informaciją ir duomenis, reikalingus statistikos tikslams ir strateginio plano įgyvendinimo stebėsenai, viešinimui bei reikalingiems vertinimams atlikti?"]
["9.17","Ar įsipareigojate projekto įgyvendinimo ir kontrolės laikotarpiu dirbtinai nekurti sąlygų gauti paramą?"]
["9.18","Ar įsipareigojate pasiekti ir iki kontrolės laikotarpio pabaigos išlaikyti paramos paraiškoje numatytus projekto priežiūros rodiklius?"]
["9.19","Ar įsipareigojate  ne vėliau kaip kartu su galutiniu mokėjimo prašymu pateikti NMA licencijos arba leidimo kopiją?\nTaikoma, jei sumaniojo kaimo projekte numatytos investicijos, susijusios su licencijuojama veikla, arba veikla, kuriai vykdyti turi būti išduotas leidimas."]
["9.20","Ar įsipareigojate, kad sumaniojo kaimo projekte numatytos tinkamos finansuoti išlaidos bus patirtos nepažeidžiant pirkimų tvarkos?"]
["9.21","Ar įsipareigojate nedaryti įtakos, siekiant palankaus sprendimo, strategijos vertinimą atliekančiam (-iems) asmeniui (-ims), NMA, Strategijos atrankos komitetui arba atskiriems jo nariams, Žemės ūkio ministerijai (toliau – Ministerija)?"]
["9.22","Ar įsipareigojimų laikysitės visą strategijos ir projekto įgyvendinimo ir kontrolės laikotarpį?"]
["9.23","Ar įsipareigojate, įgyvendindami projektą, siekti teigiamo poveikio strategijai ir naudos visuomenei?"]

{"sheet":"10l_PD","index":10,"n_rows":28,"n_cols":3,"rows_kept":28}
[]
["10.","PATEIKIAMI DOKUMENTAI"]
["Eil. Nr. ","Dokumento pavadinimas","Pažymėti \"Taip\"/ \"Ne\""]
["10.1"]
["10.2"]
["10.3"]
["10.4"]
["10.5"]
["10.6"]
["10.7"]
["10.8"]
["10.9"]
["10.10"]
["10.11"]
["10.12"]
["10.13"]
["10.14"]
["10.15"]
["10.16"]
["10.17"]
["10.18"]
["10.19"]
["10.20"]
["10.21"]
["10.22"]
["10.23"]
["10.24"]
["10.25"]

{"sheet":"11l_D ","index":11,"n_rows":49,"n_cols":2,"rows_kept":49,"merged":[[48,0,48,1]]}
[]
["11.","PAREIŠKĖJO DEKLARACIJA"]
[null,"Žymimas atsakymas \"Taip\", jei su žemiau deklaracijoje pateikta informacija pareiškėjas sutinka. \nSvarbu! Nepasirinkus atsakymo žaliame lauke, paraiška bus laikoma užpildyta netinkamai!"]
[]
["11.1 ","Aš, pretenduodamas (-a) gauti paramą pagal Lietuvos žemės ūkio ir kaimo plėtros 2023–2027 metų strateginio plano intervencinę priemonę _____________________________________  (nurodomas intervencinės priemonės, pagal kurios įgyvendinimo taisykles teikiama paraiška, pavadinimas) pasirašydamas (-a) šioje paramos paraiškoje, patvirtinu, kad:"]
["11.1.1","šioje paramos paraiškoje ir su ja pateikiamuose dokumentuose pateikta informacija, mano žiniomis ir įsitikinimu, yra teisinga;"]
["11.1.2","prašoma parama yra mažiausia projektui įgyvendinti reikalinga suma;"]
["11.1.3","nesu pažeidęs (-usi) ir (arba) juridinis asmuo, kuriam aš atstovauju, nėra pažeidęs jokios kitos sutarties dėl paramos skyrimo iš ES arba Lietuvos Respublikos biudžeto lėšų;"]
["11.1.4","mano atstovaujamam juridiniam asmeniui nėra iškelta byla dėl bankroto ar restruktūrizavimo ir jis nėra likviduojamas (taikoma, kai pareiškėjas – juridinis asmuo) / man nėra iškelta byla dėl bankroto (taikoma, kai pareiškėjas – fizinis asmuo);"]
["11.1.5","dėl teikiamos projekto paraiškos nekyla jokio interesų konflikto, kaip tai apibrėžiama Lietuvos Respublikos viešųjų ir privačių interesų derinimo valstybinėje tarnyboje įstatyme bei 2018 m. liepos 18 d. Europos Parlamento ir Tarybos reglamente (ES) 2018/1046 dėl Sąjungos bendrajam biudžetui taikomų finansinių taisyklių, kuriuo iš dalies keičiami reglamentai (ES) Nr. 1296/2013, (ES) Nr. 1301/2013, (ES) Nr. 1303/2013, (ES) Nr. 1304/2013, (ES) Nr. 1309/2013, (ES) Nr. 1316/2013, (ES) Nr. 223/2014, (ES) Nr. 283/2014 ir Sprendimas Nr. 541/2014/ES bei panaikinamas Reglamentas (ES, Euratomas) Nr. 966/2012 su paskutiniais pakeitimais, padarytais 2022 m. gruodžio 6 d. Europos Parlamento ir Tarybos reglamentu (ES, Euratomas) 2022/2434, bei nurodyta Europos Komisijos paskelbtose Interesų konfliktų vengimo ir valdymo pagal Finansinį reglamentą gairėse (Komisijos pranešimas (2021/C 121/01);"]
["11.1.6","esu susipažinęs (-usi) su projekto finansavimo sąlygomis, tvarka ir reikalavimais, nustatytais Administravimo taisyklėse ir Taisyklėse, ir juos vykdysiu;"]
["11.1.7","projekte numatytos išlaidos, finansuojamos iš Strateginio plano lėšų, nebuvo, nėra ir nebus finansuojamos iš kitų ES fondų ir kitų viešųjų lėšų;"]
["11.1.8","NMA pateikta atsiskaitomoji sąskaita priklauso man (mano atstovaujamam juridiniam asmeniui) ir prisiimu visą atsakomybę dėl nuostolių, kurie gali atsirasti klaidingai nurodžius banko sąskaitos numerį;"]
["11.1.9","man nežinomos kitos šioje paramos paraiškoje nenurodytos priežastys, dėl kurių projektas negalėtų būti įgyvendintas ar jo įgyvendinimas būtų atidedamas, arba dėl kurių projektas nebūtų įgyvendintas nustatytu laikotarpiu;"]
["11.1.10","žinau, kad paramos paraiška gali būti atmesta, jeigu joje pateikti ne visi prašomi duomenys ir jie nepateikiami MA paprašius (įskaitant šią deklaraciją);"]
["11.1.11","žinau, kad paramos paraiškoje ir kituose NMA teikiamuose dokumentuose esantys mano asmens ir (arba) juridinio asmens, kuriam aš atstovauju, duomenys ir kiti duomenys bus apdorojami ir saugomi paramos priemonių administravimo informacinėse sistemose ir kad NMA paramos administravimo klausimais gautų su manimi ir (arba) mano atstovaujamu juridiniu asmeniu susijusius duomenis bei kitą informaciją iš valstybės įmonės Žemės ūkio duomenų centro bei kitų Lietuvos Respublikos valstybės ir ES institucijų viešųjų registrų, informacinių sistemų ir duomenų bazių (toliau – Registrai);"]
["11.1.12","esu informuotas (-a), kad NMA tikrins pateiktus duomenis Registruose ir kad esu atsakingas (-a) už reikiamų dokumentų ir (arba) informacijos pateikimą NMA laiku;"]
["11.1.13","žinau, kad mano paramos paraiškos tinkamumas gauti paramą bus vertinamas pagal mano pateiktus ir atitinkamais dokumentais pagrįstus duomenis bei Registruose esančius duomenis; jei paraiškoje pateikti duomenys skirsis nuo Registruose esančių duomenų, bus vadovaujamasi Registruose esančiais duomenimis;"]
["11.1.14","esu informuotas (-a), kad duomenys apie gaunamą (gautą) paramą bus viešinami visuomenės informavimo tikslais, taip pat gali būti perduoti audito ir tyrimų institucijoms siekiant apsaugoti Lietuvos Respublikos ir (arba) ES finansinius interesus ES ir Lietuvos Respublikos teisės aktų nustatyta tvarka;"]
["11.1.15","žinau, kad informacija apie mano pateiktą paramos paraišką, nurodant paramos paraiškos kodą ir prašomą paramos sumą, bus skelbiama NMA interneto svetainėje ir visa su šiuo projektu susijusi informacija gali būti naudojama statistikos, stebėsenos ir vertinimo tikslais;"]
["11.1.16","įsipareigoju teikti visą informaciją ir duomenis, reikalingus statistikos tikslams ir Strateginio plano įgyvendinimo stebėsenai bei reikalingiems vertinimams atlikti;"]
["11.1.17","įsipareigoju sudaryti sąlygas institucijų, atliekančių paramos paraiškų vertinimą, atranką ir projektų įgyvendinimo priežiūrą, Strateginio plano įgyvendinimo priežiūrą, atstovams ar jų įgaliotiems asmenims patikrinti pateiktus duomenis ir atlikti patikrą vietoje, gauti papildomos informacijos apie projektą ir su juo susijusią veiklą, nuo paramos paraiškos pateikimo dienos, taip pat audituoti, kontroliuoti, tikrinti, kaip yra laikomasi paramos gavimo sąlygų, kaip yra vykdomas projektas ir veikla, kuriai buvo skirta parama, po sprendimo skirti paramą priėmimo dienos iki projekto įgyvendinimo arba kontrolės laikotarpio (kai jis taikomas) pabaigos;"]
["11.1.18","įsipareigoju, gavęs (-usi) NMA sprendimą dėl paramos neskyrimo, paramos išmokėjimo sustabdymo, paramos sumažinimo, dėl paramos mokėjimo nutraukimo ir (arba) reikalavimo grąžinti paramos lėšas ar jų dalį, per sprendime nustatytą terminą įvykdyti sprendime išvardytus reikalavimus ir (arba) grąžinti paramos lėšas į sprendime nurodytą sąskaitą, o apie reikalavimų įvykdymą raštu informuoti NMA, taip pat esu informuotas (-a), kad per NMA sprendime nustatytą terminą negrąžinus paramos lėšų ar jų dalies, bus skaičiuojamos palūkanos (palūkanos už pavėluotas grąžinti lėšas apskaičiuojamos Lietuvos Respublikos teisės aktų nustatyta tvarka);"]
["11.1.19","patvirtinu, kad klaidingai apskaičiuotą ir pervestą į mano atsiskaitomąją sąskaitą paramos sumą grąžinsiu NMA;"]
["11.1.20","patvirtinu, kad šis projektas bus įgyvendinamas taip, kaip nurodyta šioje paraiškoje ir jos prieduose, o apie bet kokius pasikeitimus ir nukrypimus, susijusius su projekto įgyvendinimu, taip pat apie savo rekvizitų ir (arba) atsiskaitomosios sąskaitos pasikeitimus projekto įgyvendinimo metu tinkamai informuosiu NMA;"]
["11.1.21","įsipareigoju tinkamai saugoti visus dokumentus, susijusius su projekto įgyvendinimu;"]
["11.1.22","žinau, kad mano pateiktus duomenis kontrolės tikslams gali panaudoti NMA ir kitos Lietuvos Respublikos ir ES institucijos;"]
["11.1.23","esu informuotas (-a), kad jei netinkamai vykdysiu projektą pagal šią paramos paraišką ar kitaip pažeisiu teisės aktų, reglamentuojančių paramos teikimą ir administravimą, reikalavimus, man ir (arba) juridiniam asmeniui, kuriam aš atstovauju, gali būti taikomos teisės aktų nustatytos sankcijos;"]
["11.1.24","esu informuotas (-a), kad duomenų valdytoja yra NMA;"]
["11.1.25","esu informuotas (-a), kad turiu teisę žinoti apie savo asmens duomenų tvarkymą, susipažinti su tvarkomais savo asmens duomenimis ir kaip jie yra tvarkomi, reikalauti ištaisyti, ištrinti savo asmens („teisė būti pamirštam“) duomenis, apriboti savo asmens duomenų tvarkymą,  taip pat nesutikti, kad būtų tvarkomi mano asmens duomenys;"]
["11.1.26","esu informuotas (-a), kad mano asmens duomenys bus apdorojami ir saugomi iki projekto įgyvendinimo arba kontrolės laikotarpio (kai jis taikomas) pabaigos, vėliau šie duomenys bus archyvuojami ir perduodami valstybės archyvams;"]
["11.1.27","esu informuotas (-a), kad mano asmens duomenys tvarkomi šiais asmens duomenų tvarkymo tikslais: asmens, teikiančio paramos paraišką, tapatybės nustatymo tikslais, Europos žemės ūkio fondo kaimo plėtrai ir Lietuvos Respublikos valstybės biudžeto paramos administravimo, mokėjimo ir kontrolės tikslais, paramos stebėsenos ir vertinimo tikslais (įskaitant kvietimą dalyvauti apklausose ar interviu paramos vertinimo tikslais), paramos viešinimo tikslais (teisinis pagrindas – 2021 m. gruodžio 2 d. Europos Parlamento ir Tarybos reglamentas (ES) 2021/2115, kuriuo nustatomos valstybių narių pagal bendrą žemės ūkio politiką rengtinų strateginių planų (BŽŪP strateginių planų), finansuotinų iš Europos žemės ūkio garantijų fondo (EŽŪGF) ir iš Europos žemės ūkio fondo kaimo plėtrai (EŽŪFKP), rėmimo taisyklės ir panaikinami reglamentai (ES) Nr. 1305/2013 ir (ES) Nr. 1307/2013 su paskutiniais pakeitimais, padarytais 2023 m. vasario 8 d. Komisijos deleguotuoju reglamentu (ES) 2023/813, 2021 m. gruodžio 2 d. Europos Parlamento ir Tarybos reglamentas (ES) 2021/2116 dėl bendros žemės ūkio politikos finansavimo, valdymo ir stebėsenos, kuriuo panaikinamas Reglamentas (ES) Nr. 1306/2013) su paskutiniais pakeitimais, padarytais 2022 m. birželio 16 d. Komisijos deleguotuoju reglamentu (ES) 2022/1408);"]
["11.1.28","esu informuotas (-a), kad NMA tvarkomi mano asmens duomenys (kategorijos) bei detalesnė informacija apie asmens duomenų tvarkymą bus skelbiama NMA interneto svetainės www.nma.lt skiltyje „Asmens duomenų apsauga“; Žemiau toks pat !!!"]
["11.1.29","esu informuotas (-a), kad NMA tvarkomi mano asmens duomenys (kategorijos) bei detalesnė informacija apie asmens duomenų tvarkymą bus skelbiama NMA interneto svetainės www.nma.lt skiltyje „Asmens duomenų apsauga“;"]
["11.2 ","Esu informuotas (-a) ir sutinku, kad: Kodėl įtrauktas 11.2 papunktis, jame kartojasi tos pačios nuostatos kaip ir prieš tai buvo nurodytos !!!"]
["11.2.1","sumanaus kaimo projekto paraiška gali būti atmesta, jeigu joje pateikti ne visi prašomi duomenys ir jie nepateikiami vietos veiklos grupei ar NMA paprašius (įskaitant šią deklaraciją);"]
["11.2.2","sumaniojo kaimo projekto paraiškoje, kituose vietos veiklos grupei ir NMA teikiamuose dokumentuose esantys mano asmens ir (arba) juridinio asmens, kuriam aš atstovauju, duomenys ir kiti duomenys bus apdorojami ir saugomi paramos priemonių administravimo informacinėse sistemose ir kad NMA paramos administravimo klausimais gautų su manimi ir (arba) mano atstovaujamu juridiniu asmeniu susijusius duomenis bei kitą informaciją iš  Registrų; "]
["11.2.3","vietos veiklos grupei ir NMA tikrins pateiktus duomenis Registruose, kad esu atsakingas (-a) už reikiamų dokumentų ir (arba) informacijos pateikimą vietos veiklos grupei ir NMA laiku; "]
["11.2.4","mano sumaniojo kaimo projekto paramos paraiškos tinkamumas gauti paramą bus vertinamas pagal mano pateiktus ir atitinkamais dokumentais pagrįstus duomenis bei Registruose esančius duomenis; jei paraiškoje pateikti duomenys skirsis nuo Registruose esančių duomenų, bus vadovaujamasi Registruose esančiais duomenimis;"]
["11.2.5","duomenys apie gaunamą (gautą) paramą bus viešinami visuomenės informavimo tikslais, taip pat gali būti perduoti audito ir tyrimų institucijoms siekiant apsaugoti Lietuvos Respublikos ir (arba) ES finansinius interesus ES ir Lietuvos Respublikos teisės aktų nustatyta tvarka;"]
["11.2.6","informacija apie mano pateiktą sumaniojo kaimo projekto paramos paraišką, nurodant projekto pavadinimą, paramos paraiškos kodą ir prašomą paramos sumą, bus skelbiama NMA interneto svetainėje ir visa su šiuo projektu susijusi informacija gali būti naudojama statistikos, stebėsenos ir vertinimo tikslais;"]
["11.2.7","mano pateiktus duomenis kontrolės tikslams gali panaudoti NMA ir kitos Lietuvos Respublikos ir ES institucijos;"]
["11.2.8","turiu teisę žinoti apie savo asmens duomenų tvarkymą, susipažinti su tvarkomais savo asmens duomenimis ir kaip jie yra tvarkomi, reikalauti ištaisyti, ištrinti savo asmens („teisė būti pamirštam“) duomenis, apriboti savo asmens duomenų tvarkymą,  taip pat nesutikti, kad būtų tvarkomi mano asmens duomenys;"]
["11.2.9","jei netinkamai vykdysiu sumanaus kaimo projektą pagal šią paramos paraišką ar kitaip pažeisiu teisės aktų, reglamentuojančių paramos teikimą ir administravimą, reikalavimus, man ir (arba) juridiniam asmeniui, kuriam aš atstovauju, gali būti taikomos teisės aktų nustatytos sankcijos;"]
["11.2.10","duomenų valdytojas yra vietos veiklos grupė ar NMA;"]
["11.2.11","esu informuotas (-a), kad visi su paramos paraiška ir man skirta parama susiję dokumentai ir kita informacija turi būti saugoma mažiausiai 10 metų nuo paskutinės pagalbos (de minimis) suteikimo dienos; "]
["11.2.12","įsipareigoju, tuo atveju, jei nuo paramos paraiškos pateikimo iki sprendimo skirti paramą priėmimo mano įmonė susijungia su kita įmone, vyksta įmonių įsigijimas ar suskaidymas, pateikti tai pagrindžiančią informaciją ir (ar) dokumentus."]
[]
["Pastaba. Pasirašydamas paramos paraišką ir prie jos pridedamus dokumentus, pareiškėjas patvirtina, kad visi paramos paraiškoje pateikti duomenys yra teisingi. Pareiškėjo pateikti duomenys bus tvarkomi elektroniniu būdu. Juos kontrolės, priežiūros ir vertinimo tikslais gali panaudoti NMA, Žemės ūkio ministerija, kitos su EŽŪFKP administravimu susijusios institucijos."]

{"sheet":"12l_SD","index":12,"n_rows":9,"n_cols":2,"rows_kept":9,"merged":[[1,1,1,2],[2,1,2,2],[5,1,5,2],[6,1,6,2],[8,1,8,2]]}
[]
["12. ","PROJEKTO VYKDYTOJO SUTUOKTINIO IR KITŲ SUSIJUSIŲ SUBJEKTŲ DEKLARACIJA DĖL ASMENS DUOMENŲ TVARKYMO"]
[null,"(Pildo ir pasirašo kaip atskirą prie paraiškos pridedamą dokumentą tik pareiškėjo sutuoktinis ar kitas susijęs subjektas, kai teikiamas investicinis projektas. Kiekvienas asmuo pildo ir pasirašo atskirai.)"]
[null,"Informuoju, kad aš,"]
[null,"esu pareiškėjo "]
[]
[null,"Esu informuotas (-a), kad:"]
[null,"1. mano asmens duomenys bus naudojami pareiškėjui skiriamos Europos žemės ūkio fondo kaimo plėtrai ir Lietuvos Respublikos valstybės biudžeto paramos administravimo, mokėjimo ir kontrolės tikslais; "]
[null,"2. duomenų valdytoja yra NMA;\n3. NMA gali tikrinti mano pateiktus duomenis valstybės įmonės Žemės ūkio duomenų centro bei kitų Lietuvos Respublikos valstybės ir ES institucijų viešųjų registrų, informacinėse sistemose ir duomenų bazėse (toliau – Registrai); \n4. mano asmens duomenys gali būti perduoti audito ir tyrimų institucijoms siekiant apsaugoti Lietuvos Respublikos ir (arba) ES finansinius interesus ES ir Lietuvos Respublikos teisės aktuose nustatyta tvarka;\n5. turiu teisę žinoti apie savo asmens duomenų tvarkymą, susipažinti su tvarkomais savo asmens duomenimis ir kaip jie yra tvarkomi, reikalauti ištaisyti, ištrinti savo asmens duomenis („teisės būti pamirštam“), apriboti savo asmens duomenų tvarkymą, taip pat nesutikti, kad būtų tvarkomi mano asmens duomenys;\n6. mano asmens duomenys bus apdorojami ir saugomi paramos priemonių administravimo informacinėse sistemose ir kad NMA gaus mano asmens duomenis iš Registrų paramos administravimo klausimais;\n7. mano asmens duomenys bus apdorojami ir saugomi iki projekto įgyvendinimo arba kontrolės laikotarpio (kai jis taikomas) pabaigos, vėliau šie duomenys bus archyvuojami ir perduodami valstybės archyvams;\n8. mano asmens duomenys tvarkomi šiais asmens duomenų tvarkymo tikslais: asmens, teikiančio paramos paraišką, tapatybės nustatymo tikslais, Europos žemės ūkio fondo kaimo plėtrai ir Lietuvos Respublikos valstybės biudžeto paramos administravimo, mokėjimo ir kontrolės tikslais, paramos stebėsenos ir vertinimo tikslais (įskaitant kvietimą dalyvauti apklausose ar interviu paramos vertinimo tikslais), paramos viešinimo tikslais (teisinis pagrindas – 2021 m. gruodžio 2 d. Europos Parlamento ir Tarybos reglamentas (ES) 2021/2115, kuriuo nustatomos valstybių narių pagal bendrą žemės ūkio politiką rengtinų strateginių planų (BŽŪP strateginių planų), finansuotinų iš Europos žemės ūkio garantijų fondo (EŽŪGF) ir iš Europos žemės ūkio fondo kaimo plėtrai (EŽŪFKP), rėmimo taisyklės ir panaikinami reglamentai (ES) Nr. 1305/2013 ir (ES) Nr. 1307/2013 su paskutiniais pakeitimais, padarytais 2023 m. vasario 8 d. Komisijos deleguotuoju reglamentu (ES) 2023/813, 2021 m. gruodžio 2 d. Europos Parlamento ir Tarybos reglamentas (ES) 2021/2116, dėl bendros žemės ūkio politikos finansavimo, valdymo ir stebėsenos, kuriuo panaikinamas Reglamentas (ES) Nr. 1306/2013) su paskutiniais pakeitimais, padarytais 2022 m. birželio 16 d. Komisijos deleguotuoju reglamentu (ES) 2022/1408);\n9. NMA tvarkomi mano asmens duomenys (kategorijos) bei detalesnė informacija apie asmens duomenų tvarkymą bus skelbiama NMA interneto svetainės www.nma.lt skiltyje „Asmens duomenų apsauga“"]

{"sheet":"Sąrašai","index":13,"n_rows":38,"n_cols":3,"rows_kept":38,"hidden":true}
["Taip"]
["Ne"]
["N/a"]
[]
["Suma Eur su PVM"]
["Suma Eur be PVM"]
[]
["Sostinės "]
["Vidurio ir vakarų Lietuvos"]
[]
["PVM Tipas","Nr.",{"$f":"VLOOKUP('5l_FP'!B5,Sąrašai!A12:B13,2,FALSE)","v":2}]
["PVM tinkamos išlaidos",1]
["PVM netinkamos išlaidos (verslas, PVM mokėtojas)",2]
[]
["PVM proc."]
[21]
[9]
[0]
[]
["Projekto tipas","Nr.",{"$f":"VLOOKUP('5l_FP'!B7,Sąrašai!A21:B22,2,FALSE)","v":{"$error":"#N/A"}}]
["Veiklos ir mokymų projektai",1]
["Investiciniai projektai (perkamas ilgalaikis turtas)",2]
[]
[]
["Išlaidų kompensavimo"]
["Išlaidų kompensavimo su avanso mokėjimu, kai avansas nėra EK tinkamos deklaruoti išlaidos"]
["Sąskaitų apmokėjimo"]
[]
["3 komercinai pasiūlymai"]
["Įkainiai"]
["Atlikti viešieji pirkimai"]
["Kita (pasirenkama kai naudojami keli būdai, informacija pateikiama L stulpelyje)"]
["Statistikos departamento duomenimis"]
["Nekilnojamojo turto duomenimis"]
[]
["sutuoktinis "]
["artimasis giminaitis "]
["kitas susijęs asmuo"]